{"text_format":"1","workbook":"xlsx","n_sheets":9,"sheets":["1 Försättssida","2 Specifikation","3 Krav & utväderingskriterier","4.1 Priskorg","4.2 Priskorg övriga tjänster","Kontrakt","Leverantör & Ort","Leverantörsdata","Admin"],"not_rendered":{"charts":0,"images":0,"macros":1,"external_links":0,"defined_names":103,"comments":1,"pivot_tables":0},"unopened":[],"bounds":{"document_bytes":16777216,"sheet_cells":100000,"rows_first":2000,"rows_last":500,"rows_between":2000,"halvings":0,"cell_chars":16384,"cell_head_chars":4096},"cells_cut":0,"cells_raw":0,"read":"whole","date_system":"1900"}

{"sheet":"1 Försättssida","index":0,"n_rows":24,"n_cols":1,"rows_kept":24,"cut":false,"hidden":false,"merged":[]}
[]
[]
[]
[]
[]
[]
[]
[]
[]
[]
[]
["Avropsförfrågan - förnyad konkurrens"]
["från statliga ramavtal inom området "]
["Företagshälsovårdstjänster"]
[]
["Ramavtalens diarienr: 96-95-2014"]
[]
[]
[]
[]
["Avropsblankett"]
[]
[]
["Version 6,5"]

{"sheet":"2 Specifikation","index":1,"n_rows":97,"n_cols":23,"rows_kept":97,"cut":false,"hidden":false,"merged":[[10,1,10,3],[10,4,10,6],[10,7,10,8],[10,10,10,13],[11,1,11,6],[11,7,11,8],[11,10,11,13],[10,14,10,17],[13,13,13,15],[13,16,13,17],[11,14,11,15],[11,16,11,17],[12,1,12,6],[12,7,12,8],[12,10,12,13],[12,14,12,15],[12,16,12,17],[13,1,13,3],[13,4,13,6],[13,7,13,8],[13,10,13,12],[8,1,8,6],[8,7,8,8],[8,10,8,15],[8,16,8,17],[9,1,9,3],[9,4,9,6],[9,7,9,8],[9,10,9,13],[9,14,9,17],[2,1,2,4],[2,10,2,12],[2,14,2,17],[3,1,4,8],[3,10,4,17],[5,1,5,8],[6,1,6,8],[7,1,7,6],[7,7,7,8],[7,10,7,15],[7,16,7,17],[14,16,14,17],[15,1,15,3],[15,4,15,8],[15,10,15,12],[15,13,15,17],[14,1,14,3],[14,4,14,6],[14,7,14,8],[14,13,14,15],[14,10,14,12],[29,7,29,8],[30,5,30,6],[30,7,30,8],[29,1,29,2],[29,3,29,4],[30,1,30,2],[16,13,16,17],[19,10,19,13],[22,1,23,8],[26,1,26,8],[26,10,26,13],[16,1,16,3],[16,4,16,8],[21,1,21,8],[30,16,32,26],[29,5,29,6],[30,3,30,4],[16,10,16,12],[44,1,44,8],[47,1,47,8],[47,10,47,13],[48,1,48,8],[43,1,43,8],[42,1,42,8],[34,16,35,26],[32,7,32,8],[33,7,33,8],[39,1,39,5],[41,1,41,8],[41,10,41,13],[49,1,49,8],[50,1,50,8],[56,1,56,8],[59,1,59,17],[60,1,63,17],[66,1,67,16],[66,17,67,17],[53,1,53,8],[53,10,53,13],[54,1,54,8],[55,1,55,8],[79,10,79,16],[80,1,80,8],[80,10,80,16],[70,1,70,8],[71,1,71,8],[72,1,72,8],[73,1,73,8],[74,1,74,8],[75,1,75,8],[90,1,92,8],[87,10,87,17],[96,14,96,17],[32,4,32,6],[32,1,32,3],[33,1,33,3],[33,4,33,6],[35,1,35,8],[36,1,36,8],[88,10,88,17],[89,10,89,17],[81,1,81,8],[81,10,81,16],[90,10,90,17],[92,10,92,17],[93,10,94,17],[82,1,82,8],[82,10,82,16],[83,1,83,8],[83,10,83,16],[87,1,87,7],[78,1,78,8],[78,10,78,16],[79,1,79,8]]}
[null,null,null,null,null,null,null,null,null,null,null,null,null,null,null,null,null,{"$f":"\"Diarienummer / Nummer: \"&'2 Specifikation'!$E$15","v":"Diarienummer / Nummer: xxxx"}]
[]
[null,"Avropsförfrågan",null,null,null,null,null,null,null,null,"Avropssvar",null,null,null,{"$f":"IF(LarmStatus,\"Minst ett av de obligatoriska kraven är inte ifyllda eller besvarde med Nej\",\"\")","v":"Minst ett av de obligatoriska kraven är inte ifyllda eller besvarde med Nej"},null,null,null,null,null,null,null,{"$f":"OR(W4:W109)","v":true}]
[null,"Instruktion till avropsberättigad: \nSpara ned blanketten på din dator.\nGulmarkerade rutor fylls i av avropare innan blanketten skickas.\n\nBlanketten skickas med e-post till antagna leverantörer inom aktuellt avropsområde.\nSe vidare \"Vägledning vid avrop\".",null,null,null,null,null,null,null,null,"Instruktion till leverantör:\nBlåmarkerade rutor fylls i av leverantören.\nLäs och kontrollera obligatoriska krav.\nReturnera blanketten med e-post till avropsberättigad (oavsett Ja eller Nej)."]
[]
[]
[null,"Uppgifter om avropsberättigad",null,null,null,null,null,null,null,null,"Uppgifter om Ramavtalsleverantören"]
[null,"Avropsberättigad (namn)",null,null,null,null,null,"Organisationsnummer",null,null,"Ramavtalsleverantörens namn",null,null,null,null,null,"Organisationsnummer"]
[]
[null,"Postadress",null,null,"Postnummer",null,null,"Ort",null,null,"Kontaktperson",null,null,null,"E-Post"]
[]
[null,"Avdelning, enhet etc",null,null,null,null,null,"Fakturaref.",null,null,"Postadress",null,null,null,"Postnummer",null,"Ort"]
[]
[null,"Kontaktperson",null,null,"Ref/diarie -num för avropet",null,null,"Ev. kundnummer",null,null,"Telefon",null,null,"Ramavtalsnummer",null,null,"Offertnummer el likn för detta avropssvar"]
[null,null,null,null,"xxxx"]
[null,"Telefon",null,null,"E-post",null,null,null,null,null,"Avropssvar lämnas Ja/Nej",null,null,"Om Nej, motivering\n(Information ska även skickas till statens inköpscentral)"]
[null,null,null,null,"     "]
[]
[null,"E-faktura ska ingå i avropet (Ja/Nej)",null,null,null,null,null,null,null,null,"E-faktura"]
[null,null,null,null,null,null,null,null,null,null,"E-faktura kan tillhandahållas"]
[null,"Uppgifter om e-faktura"]
[null,"Ange ev e-fakturaadress/erna"]
[]
[]
[]
[null,"Information om avropet t ex syfte och omfattning",null,null,null,null,null,null,null,null,"Underleverantörer"]
[null,null,null,null,null,null,null,null,null,null,"Underleverantör kommer att användas (komplettera i så fall med bilaga som anger mottagningar där underleverantör används)."]
[]
[null,"Obs att tidsfristen måste vara skälig med hänsyn till avropets karaktär."]
[null,"Sista datum för frågor",null,"Sista datum för svar på frågor",null,"Sista dag för avropssvar",null,"Avropssvarets giltighetstid"]
[]
[]
[null,"Kontraktets längd: \nantal månader",null,null,"Förlängningsoption: \nantal månader",null,null,"Startdatum för kontraktet"]
[]
[]
[null,"E-post för frågor (om annan än ovan)"]
[]
[]
[]
[null,"Övriga uppgifter"]
[null,"Leveranstid",null,null,null,null,null,null,null,null,"Leveranstid"]
[null,"Ange ev leveranstid/er för tjänsterna\nOm enstaka tjänst/-er avropas kan det vara lämpligt att ange specifik leveranstid. I annat fall kan det exempelvis anges \"Löpande vid behov under kontrakstiden\".",null,null,null,null,null,null,null,null,"Kravet accepteras?",null,null,null,null,null,null,null,null,null,null,{"$f":"IF(COUNTA(B43:I45)>0,TRUE,FALSE)","v":false},{"$f":"IF(AND(V42,O42<>\"Ja\"),TRUE,FALSE)","v":false}]
[]
[]
[]
[]
[null,"Leveransvillkor",null,null,null,null,null,null,null,null,"Leveransvillkor"]
[null,"Ange ev. specifika leveransvillkor alt. hänvisa till avtalsvillkor ",null,null,null,null,null,null,null,null,"Kravet accepteras?",null,null,null,null,null,null,null,null,null,null,{"$f":"IF(COUNTA(B49:I51)>0,TRUE,FALSE)","v":false},{"$f":"IF(AND(V48,O48<>\"Ja\"),TRUE,FALSE)","v":false}]
[]
[]
[]
[]
[null,"Fakturaadress (om annan än ovan)",null,null,null,null,null,null,null,null,"Fakturaadress"]
[null,"Ange ev fakturaadress/erna",null,null,null,null,null,null,null,null,"Kravet accepteras?",null,null,null,null,null,null,null,null,null,null,{"$f":"IF(COUNTA(B55:I57)>0,TRUE,FALSE)","v":false},{"$f":"IF(AND(V54,O54<>\"Ja\"),TRUE,FALSE)","v":false}]
[]
[]
[]
[]
[null,"Övrig information"]
[null,"Ange övriga specifika förutsättningar (tex ev budgetrestriktioner), förhållanden eller önskemål som kan vara viktiga för leverantören och som inte framgår på annan plats i dokumentet."]
[]
[]
[]
[]
[]
[]
[null,"Leverantören har lämnat begärda prisuppgifter som gäller för offererade produkter/tjänster enligt ställda ska- och bör- krav och är införstådd med att samtliga lämnade uppgifter i avropssvaret är bindande.",null,null,null,null,null,null,null,null,null,null,null,null,null,null,null,null,null,null,null,null,{"$f":"IF(R67<>\"Ja\",TRUE,FALSE)","v":true}]
[]
[]
[null,"Bilagor från avropsberättigad"]
[null,"Specificera bilagor som medföljer denna avropsförfrågan"]
[]
[]
[]
[]
[]
[]
[null,"Bilagor från Leverantören",null,null,null,null,null,null,null,null,"Bilagor:"]
[null,"Ange ev. avropsberättigads krav på bilagor från leverantören",null,null,null,null,null,null,null,null,"Kravuppfyllnad",null,null,null,null,null,null,"Svar"]
[null,null,null,null,null,null,null,null,null,null,"Bilagan medföljer anbudet",null,null,null,null,null,null,null,null,null,null,{"$f":"IF(B80<>0,TRUE,FALSE)","v":false},{"$f":"IF(AND(V80,R80<>\"Ja\"),TRUE,FALSE)","v":false}]
[null,null,null,null,null,null,null,null,null,null,"Bilagan medföljer anbudet",null,null,null,null,null,null,null,null,null,null,{"$f":"IF(B81<>0,TRUE,FALSE)","v":false},{"$f":"IF(AND(V81,R81<>\"Ja\"),TRUE,FALSE)","v":false}]
[null,null,null,null,null,null,null,null,null,null,"Bilagan medföljer anbudet",null,null,null,null,null,null,null,null,null,null,{"$f":"IF(B82<>0,TRUE,FALSE)","v":false},{"$f":"IF(AND(V82,R82<>\"Ja\"),TRUE,FALSE)","v":false}]
[null,null,null,null,null,null,null,null,null,null,"Bilagan medföljer anbudet",null,null,null,null,null,null,null,null,null,null,{"$f":"IF(B83<>0,TRUE,FALSE)","v":false},{"$f":"IF(AND(V83,R83<>\"Ja\"),TRUE,FALSE)","v":false}]
[null,null,null,null,null,null,null,null,null,null,"Bilagan medföljer anbudet",null,null,null,null,null,null,null,null,null,null,{"$f":"IF(B84<>0,TRUE,FALSE)","v":false},{"$f":"IF(AND(V84,R84<>\"Ja\"),TRUE,FALSE)","v":false}]
[]
[]
[null,null,null,null,null,null,null,null,null,null,"Underskrift"]
[null,"Ange om leverantören ska underteckna avropssvaret (Ja/Nej)",null,null,null,null,null,null,null,null,"Om avropsberättigad så begär, scannas lämpligen undertecknad sida in och bifogas elektroniskt som en pdf-fil."]
[null,null,null,null,null,null,null,null,null,null,{"$f":"\"Leverantören intygar att avropssvaret är giltigt minst den tid som avropsberättigad angett ovan. \"&CHAR(10)&\"(\"&TEXT(H31,\"ÅÅÅÅ-MM-DD\")&\")\"","v":"Leverantören intygar att avropssvaret är giltigt minst den tid som avropsberättigad angett ovan. \n(1900-01-00)"}]
[null,"Låsning av avropsblanketten",null,null,null,null,null,null,null,null,"Ort, datum"]
[null,"Detta görs genom att klicka på knappen \"Lås avropsblanketten\" nedan samt ange ett lösenord. Om det visat sig att man glömt fylla i någon uppgift så kan det vara bra att kunna låsa upp blanketten. Klicka då på knappen \"Lås upp avropsblanketten\" nedan."]
[]
[null,null,null,null,null,null,null,null,null,null,"Namn, befattning (behörig företrädare för leverantören)"]
[]
[]
[]
[null,null,null,null,null,null,null,null,null,null,null,null,null,null,{"$f":"IF(LarmStatus,\"Minst ett av de obligatoriska kraven är inte ifyllda eller besvarde med Nej\",\"\")","v":"Minst ett av de obligatoriska kraven är inte ifyllda eller besvarde med Nej"}]

{"sheet":"3 Krav & utväderingskriterier","index":2,"n_rows":61,"n_cols":12,"rows_kept":61,"cut":false,"hidden":false,"merged":[[26,7,29,11],[35,7,38,11],[35,1,35,3],[43,6,48,6],[52,1,52,3],[46,1,47,5],[42,1,42,5],[45,1,45,5],[34,6,39,6],[37,1,38,5],[5,7,5,10],[27,1,27,5],[33,1,33,5],[5,1,5,4],[14,7,15,11],[26,1,26,3],[28,1,29,5],[25,1,25,3],[10,1,10,4],[14,1,15,5],[9,7,9,11],[9,1,9,5],[18,1,18,5],[24,1,24,5],[19,1,21,5],[25,7,25,9],[53,7,56,11],[11,1,11,4],[25,6,30,6],[43,7,43,9],[54,1,54,5],[43,1,43,3],[52,7,52,9],[52,6,57,6],[51,1,51,5],[55,1,56,5],[53,1,53,3],[44,7,47,11],[44,1,44,3],[34,1,34,3],[36,1,36,5],[34,7,34,9]]}
[null,null,null,null,null,null,null,null,null,null,null,{"$f":"\"Diarienummer / Nummer: \"&'2 Specifikation'!$E$15","v":"Diarienummer / Nummer: xxxx"}]
[]
[]
[null,"Krav och utvärderingskriterier"]
[]
[null,"Avropsberättigad",null,null,null,null,null,"Leverantören"]
[]
[]
[null,"Utvärderingskriterie 1, Pris",null,null,null,null,null,"Kravuppfyllnad:"]
[null,"Pris fylls i på flik 4.1, Priskorg samt i förekommande fall flik 4.2 Priskorg övriga tjänster.",null,null,null,null,null,"Pris fylls i på flik 4.1, Priskorg samt i förekommande fall flik 4.2 Priskorg övriga tjänster."]
[null,"Beräkning av pris",null,null,null,"Kriterievikt %"]
[null,"Avropsberättigad fyller i behov och volymer i flik 4.1 Priskorg samt i förekommande fall flik 4.2 Priskorg övriga tjänster.\nLeverantören fyller i priser för resp rad och ett totalt pris för priskorgen beräknas och utvärderas.\n-Totalpris\n-Pris för enstaka tjänster"]
[]
[null,"I de fall man inte har några ytterligare ska-krav och har pris som enda utvärderingskriterie anger man 100% kriterievikt på pris ovan och behöver därmed inte fylla i nedanstående"]
[null,"Instruktion till avropsberättigad: \nNedan anges de utvärderingskriterier som kan användas vid avrop. Angivna kriterier kan utformas som ska-krav eller utvärderingskriterier.\n\nNedan angivna kriterier är inte uttömmande, avropsberättigad ska precisera kraven i avropsförfrågan.\nGulmarkerade rutor fylls i av avropsberättigad innan avropsförfrågan skickas.\n\nI avropsförfrågan ska avropsberättigad specificera den inbördes vikten mellan utvärderingskriterierna. Vikten uttrycks t.ex i procent (%) och fastställs utifrån avropsberättigades behov. Utvärderingskriterier kan viktas 0-100 % (0 % innebär att utvärderingskriteriet inte utvärderas). Minst ett (1) utvärderingskriterie ska användas i avropsförfrågan. Om två (2) eller flera utvärderingskriterier anges ska avropsberättigad ange en inbördes vikt mellan utvärderingskriterierna (en procentuell vikt), t.ex: Tillgänglighet 25 %, statistik 25 % och pris 50 %. Om utvärderingskriteriet ska få ett stort utslag vid utvärderingen krävs det att kriterievikten sätts till en hög procentsats.\n \nOm exempelvis endast utvärderingskriteriet pris används i avropet ska detta viktas 100 %. En sådan viktning innebär att ramavtalsleverantören som angett lägst pris ska tilldelas kontraktet. Observera att summan av kriterievikten för de utvalda utvärderingskriterierna alltid måste vara 100 %.    \n",null,null,null,null,null,"Instruktion till ramavtalsleverantör:\nBlåmarkerade rutor fylls i av ramavtalsleverantören.\nLäs och kontrollera obligatoriska krav\nUtvärdering kommer att ske enligt den information som framgår av rutan \"Utvärderingsmodell\" nedan"]
[]
[]
[null,"Utvärderingsmodell, Avropsberättigads beskrivning av utvärderingsmodell"]
[null,"Avropsberättigad ska nedan beskriva (alt. bifoga en separat bilaga) den valda utvärderingsmodellen. Det är upp till avropsberättigad att själv välja vilken utvärderingsmodell som ska användas. Som utvärderingsmodell kan t.ex. relativ eller mervärdesmodell användas. Skala för underkriterierna kan t.ex. vara i poäng, procent eller ja/nej-uppfyllelse. Det bör dock påpekas att vald utvärderingsmodell ska vara transparent och tydligt beskriven. Om avropsberättigad använder sig av Statens inköpscentrals utvärderingsmall vänligen ange detta i det gula fältet. "]
[]
[]
[]
[]
[null,"Utvärderingskriterie 2, Tillgänglighet",null,null,null,null,null,"Kravuppfyllnad:"]
[null,"Uppställning av krav alt. hänvisning till bilaga. Om börkrav ange kriterievikt för uppfyllande av krav",null,null,null,null,null,null,null,null,null,"Svar"]
[null,"Spec enl upphandlingen",null,null,"Typ av krav","Kriterievikt %\n(vid börkrav)",{"$f":"IF($F$60<>1,\"Total kriterievikt skall = 100%. Fönv \" & $F$60*100 & \"%\",\"\")","v":"Total kriterievikt skall = 100%. Fönv 0%"},"Beskriv nedan hur kravet uppfylls",null,null,"Kravet uppfyllt? "]
[null,"- Närhet till allmänna kommunikationsmedel\n- Placering, adress för mottagning\n- Vara placerad inom ett geografiskt avstånd som gör det möjligt att nå företagshälsovården med allmänna transportmedel inom en viss tid\n- Tillgänglighetsanpassning för funktionsnedsatta"]
[null,"Avropsberättigads beskrivning av utvärderingskriteriet, ska/börkrav"]
[]
[]
[null,{"$f":"IF(AND(E27=\"Börkrav\",F27=0),\"Ett bör krav måste kombineras med en kriterievikt på mer än 0%\",IF(AND(E27=\"Skakrav\",F27>0),\"Ett skakrav kan inte kombineras med än kriterievikt\",\"\"))","v":""},null,null,null,null,null,{"$f":"IF(AND(E27=\"Skakrav\",L26<>\"ja\"),\"Ovanstående skakrav är inte uppfyllt\",\"\")","v":""}]
[]
[null,"Utvärderingskriterie 3, Statistik",null,null,null,null,null,"Kravuppfyllnad:"]
[null,"Uppställning av krav alt. hänvisning till bilaga. Om börkrav ange kriterievikt för uppfyllande av krav",null,null,null,null,null,null,null,null,null,"Svar"]
[null,"Spec enl upphandlingen",null,null,"Typ av krav","Kriterievikt %\n(vid börkrav)",{"$f":"IF($F$60<>1,\"Total kriterievikt skall = 100%. Fönv \" & $F$60*100 & \"%\",\"\")","v":"Total kriterievikt skall = 100%. Fönv 0%"},"Beskriv nedan hur kravet uppfylls",null,null,"Kravet uppfyllt? "]
[null,"- Lättförståeliga rapporter\n- Detaljinformation\n- Återrapportering\n- Kundportal med möjlighet för Avropsberättigad att själv ta del av statistik"]
[null,"Avropsberättigads beskrivning av utvärderingskriteriet, ska/börkrav"]
[]
[]
[null,{"$f":"IF(AND(E36=\"Börkrav\",F36=0),\"Ett bör krav måste kombineras med en kriterievikt på mer än 0%\",IF(AND(E36=\"Skakrav\",F36>0),\"Ett skakrav kan inte kombineras med än kriterievikt\",\"\"))","v":""},null,null,null,null,null,{"$f":"IF(AND(E36=\"Skakrav\",L35<>\"ja\"),\"Ovanstående skakrav är inte uppfyllt\",\"\")","v":""}]
[]
[null,"Utvärderingskriterie 4, Uppdrag",null,null,null,null,null,"Kravuppfyllnad:"]
[null,"Uppställning av krav alt. hänvisning till bilaga. Om börkrav ange kriterievikt för uppfyllande av krav",null,null,null,null,null,null,null,null,null,"Svar"]
[null,"Spec enl upphandlingen",null,null,"Typ av krav","Kriterievikt %\n(vid börkrav)",{"$f":"IF($F$60<>1,\"Total kriterievikt skall = 100%. Fönv \" & $F$60*100 & \"%\",\"\")","v":"Total kriterievikt skall = 100%. Fönv 0%"},"Beskriv nedan hur kravet uppfylls",null,null,"Kravet uppfyllt? "]
[null,"- Kvalitet\n- Kompetens\n- Övriga kompetenser\n- Tjänster\n- Samarbete och flexibilitet\n- Referenser\n- Beskriva det aktuella uppdragets utförande"]
[null,"Avropsberättigads beskrivning av utvärderingskriteriet, ska/börkrav"]
[]
[]
[null,{"$f":"IF(AND(E45=\"Börkrav\",F45=0),\"Ett bör krav måste kombineras med en kriterievikt på mer än 0%\",IF(AND(E45=\"Skakrav\",F45>0),\"Ett skakrav kan inte kombineras med än kriterievikt\",\"\"))","v":""},null,null,null,null,null,{"$f":"IF(AND(E45=\"Skakrav\",L44<>\"ja\"),\"Ovanstående skakrav är inte uppfyllt\",\"\")","v":""}]
[]
[null,"Utvärderingskriterie 5, Åtgärdsförslag",null,null,null,null,null,"Kravuppfyllnad:"]
[null,"Uppställning av krav alt. hänvisning till bilaga. Om börkrav ange kriterievikt för uppfyllande av krav",null,null,null,null,null,null,null,null,null,"Svar"]
[null,"Spec enl upphandlingen",null,null,"Typ av krav","Kriterievikt %\n(vid börkrav)",{"$f":"IF($F$60<>1,\"Total kriterievikt skall = 100%. Fönv \" & $F$60*100 & \"%\",\"\")","v":"Total kriterievikt skall = 100%. Fönv 0%"},"Beskriv nedan hur kravet uppfylls",null,null,"Kravet uppfyllt? "]
[null,"- Beskrivning på vilket sätt företagshälsovårdens insatser kan minska korttidssjukfrånvaron.\n- Beskrivning på vilket sätt arbetsanpassning och rehabiliterande åtgärder kan utformas för att nå uppsatta mål.\n- Beskrivning på vilket sätt främjande och förebyggande åtgärder kan utformas för att nå uppsatta mål.\n- Beskrivning på vilket sätt psykosociala insatser kan utformas för att nå uppsatta mål.\n- Beskrivning på vilket sätt åtgärder kan genomföras vid en\norganisationsförändring."]
[null,"Avropsberättigads beskrivning av utvärderingskriteriet, ska/börkrav"]
[]
[]
[null,{"$f":"IF(AND(E54=\"Börkrav\",F54=0),\"Ett bör krav måste kombineras med en kriterievikt på mer än 0%\",IF(AND(E54=\"Skakrav\",F54>0),\"Ett skakrav kan inte kombineras med än kriterievikt\",\"\"))","v":""},null,null,null,null,null,{"$f":"IF(AND(E54=\"Skakrav\",L53<>\"ja\"),\"Ovanstående skakrav är inte uppfyllt\",\"\")","v":""}]
[]
[null,null,null,null,"Summa Kriterivikt (skall summera till 100%):",{"$f":"SUM(F27,F36,F45,F54,F12)","v":0}]
[null,null,null,null,null,{"$f":"IF($F$60<>1,\"Total kriterievikt skall = 100%. Fönv är den \" & $F$60*100 & \"%\",\"\")","v":"Total kriterievikt skall = 100%. Fönv är den 0%"}]

{"sheet":"4.1 Priskorg","index":3,"n_rows":697,"n_cols":11,"rows_kept":697,"cut":false,"hidden":false,"merged":[[672,2,672,3],[674,1,679,6],[684,1,684,6],[697,1,702,6],[696,1,696,6],[685,1,685,6],[686,1,688,6],[689,1,689,6],[691,1,691,6],[692,2,692,3],[690,1,690,6],[583,1,584,6],[172,1,172,6],[240,1,240,6],[641,1,641,6],[637,1,637,6],[638,1,640,6],[620,1,620,6],[622,2,622,3],[618,1,618,6],[623,2,623,3],[624,2,624,3],[625,2,625,3],[626,1,626,6],[560,1,562,4],[372,1,374,6],[486,1,486,10],[381,2,381,3],[382,2,382,3],[402,2,402,3],[509,1,509,6],[487,1,487,6],[396,1,398,6],[452,1,457,6],[246,1,246,6],[44,1,44,6],[5,1,5,10],[94,1,94,6],[95,1,97,6],[12,1,12,6],[60,1,65,6],[118,5,120,6],[123,5,123,6],[11,9,11,10],[8,1,8,10],[154,1,154,6],[45,1,47,6],[168,1,170,6],[100,1,100,6],[55,2,55,3],[56,2,56,3],[167,1,167,6],[241,1,241,6],[50,1,54,6],[105,1,105,6],[78,2,78,3],[79,2,79,3],[80,2,80,3],[81,2,81,3],[124,5,124,6],[48,1,48,6],[181,1,181,6],[423,1,423,6],[418,1,420,6],[572,1,572,6],[573,1,577,6],[547,1,552,6],[511,1,513,6],[534,1,534,10],[566,5,566,6],[559,1,559,4],[559,5,559,6],[571,8,577,10],[355,1,355,6],[225,1,225,6],[288,1,288,6],[271,1,273,6],[375,1,375,6],[30,1,31,6],[77,1,77,6],[83,1,88,6],[59,1,59,6],[75,1,75,6],[152,2,152,3],[98,1,98,6],[49,1,49,6],[76,1,76,6],[72,1,74,6],[194,1,194,6],[195,1,197,6],[82,1,82,6],[205,1,210,6],[117,1,117,4],[118,1,120,4],[151,2,151,3],[117,5,117,6],[71,1,71,6],[371,1,371,6],[370,1,370,10],[101,2,101,3],[182,1,187,6],[171,1,171,6],[178,2,178,3],[354,1,354,6],[358,1,358,6],[226,1,231,6],[353,1,353,6],[242,2,242,3],[243,2,243,3],[329,1,329,6],[348,1,348,6],[338,8,344,10],[358,8,364,10],[350,1,352,6],[333,1,333,6],[357,2,357,4],[336,4,336,5],[313,2,313,3],[122,1,122,5],[309,1,309,6],[334,1,334,6],[263,1,263,6],[289,1,289,6],[270,1,270,6],[305,1,307,6],[349,1,349,6],[424,2,424,3],[378,2,378,3],[126,8,133,10],[179,2,179,3],[223,2,223,3],[221,1,221,6],[310,1,310,6],[285,1,287,6],[308,1,308,6],[293,1,293,6],[259,1,261,6],[264,1,264,6],[377,1,377,6],[294,1,299,6],[338,1,338,6],[376,1,376,6],[316,1,321,6],[330,1,332,6],[359,1,364,6],[445,1,445,6],[469,1,469,6],[425,2,425,3],[448,2,448,3],[384,1,389,6],[515,1,515,6],[519,2,519,3],[560,5,562,6],[475,1,475,6],[422,1,422,6],[488,1,490,6],[493,1,493,6],[516,1,516,6],[451,1,451,6],[440,1,440,6],[492,1,492,6],[546,1,546,6],[541,1,541,6],[428,1,428,6],[429,1,434,6],[449,2,449,3],[520,2,520,3],[417,1,417,6],[394,1,394,10],[57,2,57,3],[58,2,58,3],[99,1,99,6],[199,1,199,6],[102,2,102,3],[103,2,103,3],[104,2,104,3],[174,2,174,3],[173,1,173,6],[175,2,175,3],[106,1,111,6],[153,2,153,3],[521,2,521,3],[522,2,522,3],[542,2,542,3],[514,1,514,6],[510,1,510,6],[446,1,446,6],[463,1,463,10],[474,2,474,3],[494,2,494,3],[495,2,495,3],[176,2,176,3],[204,1,204,6],[421,1,421,6],[200,1,200,6],[216,1,218,6],[215,1,215,6],[337,4,337,5],[336,2,336,3],[337,2,337,3],[290,1,290,6],[335,1,335,6],[380,2,380,3],[379,2,379,3],[395,1,395,6],[400,1,400,6],[401,1,401,6],[403,2,403,3],[404,2,404,3],[339,1,344,6],[315,1,315,6],[275,1,275,6],[304,1,304,6],[291,2,291,3],[292,2,292,3],[598,2,598,3],[523,1,523,6],[524,1,529,6],[536,1,538,6],[540,1,540,6],[539,1,539,6],[564,1,564,6],[565,1,565,6],[643,1,643,6],[535,1,535,6],[588,1,588,6],[589,1,591,6],[614,1,614,6],[642,1,642,6],[593,1,593,6],[619,1,619,6],[594,1,594,6],[602,1,607,6],[627,1,632,6],[613,1,613,6],[636,1,636,6],[615,1,617,6],[592,1,592,6],[601,1,601,6],[599,2,599,3],[649,1,649,6],[693,2,693,3],[694,2,694,3],[695,2,695,3],[668,2,668,3],[669,2,669,3],[670,2,670,3],[650,1,655,6],[661,1,661,6],[662,1,664,6],[665,1,665,6],[644,2,644,3],[645,2,645,3],[646,2,646,3],[647,2,647,3],[648,2,648,3],[660,1,660,6],[600,2,600,3],[621,2,621,3],[666,1,666,6],[667,1,667,6],[673,1,673,6],[671,2,671,3],[35,1,35,6],[518,2,518,3],[567,5,567,6],[568,5,568,6],[569,5,569,6],[570,5,570,6],[137,1,137,6],[543,2,543,3],[544,2,544,3],[545,2,545,3],[496,2,496,3],[497,2,497,3],[517,2,517,3],[499,1,504,6],[498,1,498,6],[465,1,467,6],[468,1,468,6],[427,2,427,3],[447,2,447,3],[439,1,439,10],[406,1,406,6],[407,1,412,6],[441,1,443,6],[444,1,444,6],[148,2,148,3],[149,2,149,3],[150,2,150,3],[596,2,596,3],[597,2,597,3],[36,1,37,6],[595,2,595,3],[476,1,481,6],[491,1,491,6],[405,2,405,3],[426,2,426,3],[244,2,244,3],[311,2,311,3],[265,2,265,3],[266,2,266,3],[399,1,399,6],[383,1,383,6],[284,1,284,6],[277,2,277,3],[312,2,312,3],[356,2,356,4],[236,1,238,6],[239,1,239,6],[219,1,219,6],[115,1,116,6],[141,1,141,6],[142,1,144,6],[145,1,145,6],[146,1,146,6],[147,1,147,6],[125,5,125,6],[127,1,127,4],[128,1,133,4],[314,2,314,3],[155,1,160,6],[558,1,558,6],[416,1,416,10],[450,2,450,3],[471,2,471,3],[472,2,472,3],[473,2,473,3],[470,1,470,6],[464,1,464,6],[235,1,235,6],[278,2,278,3],[276,1,276,6],[274,1,274,6],[247,1,252,6],[262,1,262,6],[258,1,258,6],[166,1,166,6],[201,2,201,3],[177,2,177,3],[202,2,202,3],[222,2,222,3],[198,1,198,6],[220,1,220,6]]}
[null,null,null,null,null,null,null,null,null,null,{"$f":"\"Diarienummer / Nummer: \"&'2 Specifikation'!$E$15","v":"Diarienummer / Nummer: xxxx"}]
[]
[null,"Förslag Priskorg"]
[]
[null,"Instruktion:"]
[null,"Avropsberättigad ska fylla i volymer för de tjänster och kompetenser som de behöver. Angivna uppgifter speglar avropsberättigads uppfattade behov under angiven kontraktsperiod (kontraktsperioden anges i flik 2 Specifikation).\n\nRamavtalsleverantören fyller i priser per timme/st/grupp osv för de olika kompetenserna, vilka summeras till ett totalpris för priskorgen. Ifylld avropsblankett ska skickas med till ramavtalsleverantören vid avropsförfrågan. Blå celler fylls i av ramavtalsleverantören och gula celler fylls i av avropsberättigad.\n\nAvropsberättigad ska i sin behovsanalys som skickas med avropsförfrågan ange om de olika tjänsterna ska utföras hos avropsberättigad eller hos företagshälsovården.\n\nObservera att samtliga nedan angivna volymer/uppgifter inte återspeglar hur stor volym som faktiskt kommer att köpas. Volymerna fungerar framförallt i utvärderingssyfte och utgör således inga garantier för det verkliga utfallet. Det verkliga utfallet kan bli såväl lägre som högre.\n"]
[]
[null,"Förklaringar:"]
[null,"Timpriset avser påbörjad timme. 1 timme = 60 min"]
[]
[null,null,null,null,null,null,null,null,null,null,"Totalpris för priskorg:"]
[null,"Priser för olika kompetenser",null,null,null,null,null,null,null,{"$f":"SUM(K13:K706)+E28+SUM('4.2 Priskorg övriga tjänster'!K17:K44)","v":0}]
[null,"Avropsberättigad fyller i uppskattat behov för respektive kompetens inklusive de tjänster som specificeras under 4.2, 4.3 och 4.4 nedan.\n\nRamavtalsleverantören fyller i priser som gäller för avropet. Observera att ramavtalets takpriser avseende kompetenser och vaccin inte får överskridas. Takprislistor finns under fliken för respektive ramavtalsleverantör, se\nhttp://www.avropa.se/ramavtal/ramavtalsomraden/Ovriga-tjanster/Foretagstjanster/foretagshalsovard/\n\nNotera att nytt för detta ramavtal är att hälsoundersökning och hälsotest inte har några takpriser. Det är en fördel att avropsberättigad fyller i tänkta volymer för dessa tjänster i syfte att undvika höga priser. \n"]
[null,"Pris SEK/tim, ska anges för respektive kompetens.\nObs! ramavtalets takpris får ej överskridas","Uppskattat behov (tim) utöver nedan specificerade tjänster","Pris för detta avrop","Tot Pris"]
[null,"Företagsläkare",null,null,{"$f":"C15*D15","v":0}]
[null,"Legitimerad läkare",null,null,{"$f":"C16*D16","v":0}]
[null,"Företagssköterska",null,null,0]
[null,"Legitimerad sjuksköterska",null,null,0]
[null,"Beteendevetare",null,null,0]
[null,"Legitimerad psykolog",null,null,0]
[null,"Psykiater",null,null,{"$f":"C21*D21","v":0}]
[null,"Arbetsmiljöingenjör",null,null,0]
[null,"Ergonom",null,null,0]
[null,"Legitimerad sjukgymnast/fysioterapeft",null,null,0]
[null,"Organisations konsult",null,null,0]
[null,"Hälsopedagog",null,null,0]
[]
[null,null,null,"Sub total: ",{"$f":"SUM(E14:E26)","v":0}]
[]
[null,"Priser för specificerade tjänster (utöver ovan angivna timmar/kompetens)"]
[null,"Syftet med avsnittet nedan är göra det möjligt att ange specifika behov av tjänster och/eller att konkurrensutsätta dessa tjänster. Tjänsterna utvärderas tillsammans med uppskattade timvolymer per kompetens ovan.\n \nSamtliga tjänster (4.2, 4.3 och 4.4) nedan ingår i avropet såvida inte annat anges. Tjänsterna behöver inte specificeras utan kan anges som uppskattade timmar ovan (om ej annat anges).\n\nNotera att nytt för detta ramavtal är att hälsoundersökning och hälsotest inte har några takpriser. Det är en fördel att avropsberättigad fyller i tänkta volymer för dessa tjänster i syfte att undvika höga priser \n\nObservera för att 4.5 Övriga tjänster ska ingå i detta avrop behöver ni ange/fylla i flik 4.2 Priskorg övriga tjänster. Om fliken fylls i kommer priserna att summeras i Totalpriset för priskorg i flik 4.1.\n"]
[]
[null,"Färgade celler i avropsmallen har följande betydelse:","Fylls i av \nAvropsberättigad","Fylls i av\nLeverantör","Uvärderas","Ska ej fyllas i"]
[]
[null,"Tjänster som inte ingår i detta avrop"]
[null,"Om avropsberättigad önskar att viss/-a tjänst/-er inte ska ingå i det aktuella avropet ska det anges i textrutan nedan.\nTjänst/-er som inte ingår i aktuellt avrop."]
[]
[]
[]
[]
[null,"4.2 Främjande tjänster"]
[null,"4.2.1 Hälso och friskvårdstjänster"]
[null,"4.2.1.1 Hälsotest (individ och grupp)"]
[null,"Tjänsten ska utföras av en hälsopedagog och/ eller företagssköterska eller annan adekvat kompetens"]
[null,"Information / syfte (beskrivning som fylls i av avropsberättigad).\nAvropsberättigad ska specificera vilken annan adekvat kompetens som ska utföra tjänsten om detta är aktuellt.\nOBS! Vid grupp ange antalet individer / grupp\nNotera att denna tjänst INTE har takpris. Det är därför fördel att fylla i tänkta volymer i syfte för att undvika höga priser."]
[]
[]
[]
[]
[null,"Tjänsten omfattar minst nedan:"]
[null,"• Frågeformulär om kost, alkohol, droger, tobak, motion, stress, sömn och upplevelse av egen hälsa.\n• Blodtryck, puls, BMI, midjemått, skelettmätning och konditionstest.\n• Personligt samtal med återkoppling av resultat på individnivå och dialog om individuell handlingsplan.\n• Återkoppling av resultat på gruppnivå och förslag på handlingsplan till avropsberättigad.\n• Uppföljning av handlingsplan för individ/grupp inom tre (3) månader."]
[]
[]
[]
[]
[null,"Målgrupp","Plats",null,"Enhet",{"$f":"\"Volym/Antal (\"&IF(E59=\"styck\",C59&\"er\",E59)&\")\"","v":"Volym/Antal (pers)"},"Kompetens",null,"Pris/enhet",null,"Tot Pris"]
[null,null,null,null,"pers",null,null,null,null,null,{"$f":"F57*I57","v":0}]
[null,null,null,null,"pers",null,null,null,null,null,{"$f":"F58*I58","v":0}]
[null,null,null,null,"pers",null,null,null,null,null,{"$f":"F59*I59","v":0}]
[null,"Här anger man ev ytterligare behov än de minimikrav som anges ovan:\nAvropsberättigads beskrivning av ytteligare krav på vad som ska omfattas av tjänsten (vid behov)."]
[]
[]
[]
[]
[]
[]
[]
[]
[]
[null,"4.2.1.2 Rådgivning livsstil (individ)"]
[null,"Tjänsten ska utföras av en hälsopedagog och/ eller företagssköterska  eller annan adekvat kompetens."]
[null,"Information / syfte\nAvropsberättigad ska specificera vilken annan adekvat kompetens som ska utföra tjänsten om detta är aktuellt.\n"]
[]
[]
[]
[]
[null,"Tjänsten omfattar minst nedan:"]
[null,"• Motiverande samtal om kost- och motionsvanor, alkohol, droger, tobak, stress och sömn.\n• Handlingsplan med aktiviteter för en god livsstil."]
[null,"Målgrupp","Plats",null,"Enhet",{"$f":"\"Volym/Antal (\"&E82&\")\"","v":"Volym/Antal (tim)"},"Kompetens",null,{"$f":"\"Pris/\"&E82","v":"Pris/tim"},null,"Tot Pris"]
[null,"Individ",null,null,"tim",null,"Hälsopedagog",null,null,null,{"$f":"F80*I80","v":0}]
[null,"Individ",null,null,"tim",null,"Företagssköterska",null,null,null,{"$f":"F81*I81","v":0}]
[null,"Individ",null,null,"tim",null,"Annan adekvat kompetens",null,null,null,{"$f":"F82*I82","v":0}]
[null,"Här anger man ev ytterligare behov än de minimikrav som anges ovan:\nAvropsberättigads beskrivning av ytteligare krav på vad som ska omfattas av tjänsten (vid behov)."]
[]
[]
[]
[]
[]
[]
[]
[]
[]
[null,"4.2.1.3 Hälsofrämjande rådgivning (organisation)"]
[null,"Tjänsten ska utföras av en hälsopedagog eller organisationskonsult eller annan adekvat kompetens."]
[null,"Information / syfte\nAvropsberättigad ska specificera vilken annan adekvat kompetens som ska utföra tjänsten om detta är aktuellt."]
[]
[]
[]
[]
[null,"Tjänsten omfattar minst nedan:"]
[null,"• Nulägesbeskrivning vid behov.\n• Målformulering vid behov.\n• Metoder och aktiviteter för att bidra till en hälsosam arbetsplats.\n• Återrapportering och uppföljning enligt överenskommelse med avropsberättigad."]
[null,"Målgrupp","Plats",null,"Enhet",{"$f":"\"Volym/Antal (\"&E105&\")\"","v":"Volym/Antal (tim)"},"Kompetens",null,{"$f":"\"Pris/\"&E105","v":"Pris/tim"},null,"Tot Pris"]
[null,"Organisation",null,null,"tim",null,"Hälsopedagog",null,null,null,{"$f":"F103*I103","v":0}]
[null,"Organisation",null,null,"tim",null,"Organisations konsult",null,null,null,{"$f":"F104*I104","v":0}]
[null,"Organisation",null,null,"tim",null,"Annan adekvat kompetens",null,null,null,{"$f":"F105*I105","v":0}]
[null,"Avropsberättigads beskrivning av ytteligare krav på vad som ska omfattas av tjänsten (vid behov)."]
[]
[]
[]
[]
[]
[]
[]
[null,"4.2.2 Utbildningar och seminarier"]
[null,"4.2.2.1 Utbildningar och seminarier inom hälsofrämjande arbete (grupp)"]
[null,"Tjänsten ska utföras av lämplig kompetens inom de områden som utbildningarna och seminarierna avser.\n\nAvropsberättigad avgör i samråd med anbudsgivaren om tjänsten ska utföras på företagshälsovårdens mottagning och/eller i avropsberättigads lokaler.\n\nAvseende utbildningar och seminarier kan det vara lämpligt att fastställa innehåll och pris under kontraktsperioden och inte vid avropet. Anledningen till detta är att det kan vara svårt för avropsberättigad att vid avropet känna till vilka behov av utbildningar och seminarier som föreligger och innehållet i dessa. Det blir därför även svårt för leverantörerna att prissätta utbildningar och seminarier. "]
[]
[null,"Avropsberättigads Information om / syfte med utbildningen",null,null,null,"Leverantörens beskrivning av utbildningen\n(alt ref till bilaga)"]
[]
[]
[]
[]
[null,"Tjänsten kan innehålla:\nUtbildningar och seminarier om livsstil, kost, motion, stress, sömn,  ledarskap, organisationsutveckling och förändringsarbete samt deras betydelse för arbetsmiljön."]
[null,"Specificerat innehåll (alternativt referera till bilaga)","Plats","Omfattning/tillfälle\nlängd (tim, dagar)","Volym/Antal (st)","Leverantörens beskrivning av innehåll\n(alternativt referera till bilaga)",null,null,"Pris/st",null,"Tot Pris"]
[null,null,null,null,null,null,null,null,null,null,{"$f":"E125*I125","v":0}]
[null,null,null,null,null,null,null,null,null,null,{"$f":"E126*I126","v":0}]
[null,null,null,null,null,null,null,null,"* st avser pris per utbildning/seminarium\n(alla med utbildningen/\nseminariet förenade kostnader ska anges och ingå i offerten)"]
[null,"Avropsberättigads beskrivning av ytteligare krav på vad som ska omfattas av tjänsten (vid behov)."]
[]
[]
[]
[]
[]
[]
[]
[null,"4.3 Förebyggande tjänster"]
[null,"4.3.1 Besök hos företagshälsovården förebyggande"]
[null,"4.3.1.1 Besök förebyggande\nTjänsten ger individen möjlighet att besöka företagshälsovården för utredning av arbetsrelaterade besvär. I tjänsten ingår individuella besök och kostnadsfri remittering till specialist inom primärvården.\nSpecificera uppskattade timmar per kompetens i avsnitt \"Priser för olika kompetenser\" högst upp."]
[]
[null,"4.3.1.2 Besök förebyggande - övriga kompetenser"]
[null,"Tjänsten ska utföras av adekvat kompetens."]
[null,"Information / syfte\nAvropsberättigad ska specificera vilken annan adekvat kompetens som ska utföra tjänsten om detta är aktuellt."]
[]
[]
[]
[]
[null,"Tjänsten omfattar minst nedan:"]
[null,"• Möjlighet att köpa tjänster från övriga kompetenser, exempelvis dipl. massör, ögonläkare, audiolog, kardiolog, ortoped, flygläkare, dykläkare, leg. naprapat, leg. kiropraktor och dietist (enbart exempel).\n• Individuella besök."]
[null,"Målgrupp","Plats",null,"Enhet","Volym/Antal","Kompetens",null,"Pris/tim",null,"Tot Pris"]
[null,"Individ",null,null,"tim",null,null,null,null,null,{"$f":"F150*I150","v":0}]
[null,"Individ",null,null,"tim",null,null,null,null,null,{"$f":"F151*I151","v":0}]
[null,"Individ",null,null,"tim",null,null,null,null,null,{"$f":"F152*I152","v":0}]
[null,"Individ",null,null,"tim",null,null,null,null,null,{"$f":"F153*I153","v":0}]
[null,"Individ",null,null,"tim",null,null,null,null,null,{"$f":"F154*I154","v":0}]
[null,"Avropsberättigads beskrivning av ytteligare krav på vad som ska omfattas av tjänsten (vid behov)."]
[]
[]
[]
[]
[]
[]
[]
[]
[]
[null,"4.3.2 Arbetsmiljötjänster"]
[null,"4.3.2.1 Systematiskt arbetsmiljöarbete (SAM)"]
[null,"Tjänsten ska utföras av adekvat kompetens. Gör en marknadsanalys för att undersöka vilken kompetens som är lämplig för tjänstens utförande.\n\nAvseende systematiskt arbetsmiljöarbete kan det vara svårt att ange vilken kompetens som är adekvat vid utförandet av tjänsten. I dylika fall kan avropsberättigad nyttja den kompetens leverantören anser är adekvat och debiteras de timpriser som anges i ”Priser för olika kompetenser”. "]
[null,"Information / syfte\nAvropsberättigad ska specificera vilken annan adekvat kompetens som ska utföra tjänsten om detta är aktuellt.\n"]
[]
[]
[]
[]
[null,"Tjänsten omfattar minst nedan:"]
[null,"• Rådgivning och stöd inom det systematiska arbetsmiljöarbetet, t.ex. med arbetsmiljöpolicy, rutiner, handlingsplaner och aktiviteter.\n• Undersökning av psykosocial arbetsmiljö vid behov.\n• Undersökning av fysisk arbetsmiljö vid behov.\n• Riskanalys av arbetsmiljön.\n• Skriftlig rapport med åtgärdsförslag.\n• Uppföljning enligt överenskommelse med avropsberättigad."]
[null,"Målgrupp","Plats*",null,"Enhet",{"$f":"\"Volym/Antal (tim)\"","v":"Volym/Antal (tim)"},"Kompetens",null,"Pris/tim",null,"Tot Pris"]
[null,"Organisation",null,null,"tim",null,"Annan adekvat kompetens",null,null,null,{"$f":"F176*I176","v":0}]
[null,"Organisation",null,null,"tim",null,"Annan adekvat kompetens",null,null,null,{"$f":"F177*I177","v":0}]
[null,"Organisation",null,null,"tim",null,"Annan adekvat kompetens",null,null,null,{"$f":"F178*I178","v":0}]
[null,"Organisation",null,null,"tim",null,"Annan adekvat kompetens",null,null,null,{"$f":"F179*I179","v":0}]
[null,"Organisation",null,null,"tim",null,"Annan adekvat kompetens",null,null,null,{"$f":"F180*I180","v":0}]
[null,null,"* Plats ska i huvudsak vara på plats hos avropsberättigad eller efter ök hos leverantör."]
[null,"Avropsberättigads beskrivning av ytteligare krav på vad som ska omfattas av tjänsten (vid behov)."]
[]
[]
[]
[]
[]
[]
[]
[]
[]
[null,"4.3.3 Ergonomitjänster"]
[null,"4.3.3.1 Ergonomisk genomgång av arbetsplats (individ)"]
[null,"Tjänsten ska utföras av ergonom."]
[null,"Information / syfte"]
[]
[]
[]
[]
[null,"Tjänsten omfattar minst nedan:"]
[null,"• Besök av ergonom på arbetsplatsen.\n• Individuell bedömning avseende arbetsteknik, arbetsställning, utrustning, belysning, arbete vid bildskärm samt arbetsanpassade hjälpmedel etc.\n• Rådgivning till individen.\n• Skriftlig rekommendation om åtgärder till chefen och/eller vid behov även kopia till individen.\n• Eventuell uppföljning enligt överenskommelse med avropsberättigad."]
[null,"Målgrupp","Plats*",null,"Enhet",{"$f":"\"Volym/Antal (\"&E203&\")\"","v":"Volym/Antal (tim)"},"Kompetens",null,{"$f":"\"Pris/\"&E203","v":"Pris/tim"},null,"Tot Pris"]
[null,"Individ","Hos Avropsberättigad",null,"tim",null,"Ergonom",null,null,null,{"$f":"F203*I203","v":0}]
[null,null,null,"* Plats ska i huvudsak vara på plats hos avropsberättigad eller efter ök hos leverantör"]
[null,"Avropsberättigads beskrivning av ytteligare krav på vad som ska omfattas av tjänsten (vid behov)."]
[]
[]
[]
[]
[]
[]
[]
[]
[null,"4.3.3.2 Ergonomisk genomgång av arbetsplatser (grupp)"]
[null,"Tjänsten ska utföras av ergonom."]
[null,"Information / syfte"]
[]
[]
[]
[]
[null,"Tjänsten omfattar minst nedan:"]
[null,"• Besök av ergonom på arbetsplatsen.\n• Stöd i arbete med att ta fram uppdragsbeskrivning.\n• Undersökning av arbetsteknik, arbetsställningar, utrustning, belysning, arbete vid bildskärm, arbetsanpassade hjälpmedel samt arbetsorganisation.\n• Riskbedömning av belastningsergonomin baserad på arbetsmiljöns utformning (enl. t.ex. Arbetsmiljöverkets checklista).\n• Skriftlig rekommendation om åtgärder.\n• Eventuellt stöd vid genomförande av åtgärder.\n• Eventuell uppföljning enligt överenskommelse med avropsberättigad."]
[null,"Målgrupp","Plats",null,"Enhet",{"$f":"\"Volym/Antal (\"&E224&\")\"","v":"Volym/Antal (tim)"},"Kompetens",null,{"$f":"\"Pris/\"&E224","v":"Pris/tim"},null,"Tot Pris"]
[null,"Grupp","Hos Avropsberättigad",null,"tim",null,"Ergonom",null,null,null,{"$f":"F224*I224","v":0}]
[null,null,null,"* Plats ska i huvudsak vara på plats hos avropsberättigad eller efter ök hos leverantör"]
[null,"Avropsberättigads beskrivning av ytteligare krav på vad som ska omfattas av tjänsten (vid behov)."]
[]
[]
[]
[]
[]
[]
[]
[null,"4.3.3.3 Ergonomisk genomgång av arbetsplatser (Organisation)"]
[null,"Tjänsten ska utföras av ergonom och/eller arbetsmiljöingenjör."]
[null,"Information / syfte"]
[]
[]
[]
[]
[null,"Tjänsten omfattar minst nedan:"]
[null,"• Stöd i arbete med att ta fram uppdragsbeskrivning vid behov.\n• Undersökning av arbetsteknik, arbetsställningar, utrustning, hjälpmedel samt arbetsorganisation.\n• Skriftlig rapport med åtgärdsförslag till avropsberättigad.\n• Stöd vid genomförande av åtgärder.\n• Uppföljning enligt överenskommelse med avropsberättigad."]
[null,"Målgrupp","Plats*",null,"Enhet",{"$f":"\"Volym/Antal (\"&E245&\")\"","v":"Volym/Antal (tim)"},"Kompetens",null,{"$f":"\"Pris/\"&E245","v":"Pris/tim"},null,"Tot Pris"]
[null,"Organistation","Hos Avropsberättigad",null,"tim",null,"Ergonom",null,null,null,{"$f":"F244*I244","v":0}]
[null,"Organistation","Hos Avropsberättigad",null,"tim",null,"Arbetsmiljöingenjör",null,null,null,{"$f":"F245*I245","v":0}]
[null,null,"* Plats ska i huvudsak vara på plats hos avropsberättigad eller efter ök hos leverantör"]
[null,"Avropsberättigads beskrivning av ytteligare krav på vad som ska omfattas av tjänsten (vid behov)."]
[]
[]
[]
[]
[]
[]
[]
[]
[null,"4.3.4 Hälsoundersöknings- och hälsovårdstjänster"]
[null,"4.3.4.1 Liten hälsoundersökning (individ)"]
[null,"Tjänsten ska utföras av företagssköterska och vid behov av företagsläkare eller annan adekvat kompetens."]
[null,"Information / syfte (beskrivning som fylls i av avropsberättigad)\nAvropsberättigad ska specificera vilken annan adekvat kompetens som ska utföra tjänsten om detta är aktuellt.\nOBS! Vid grupp ange antalet individer / grupp\nNotera att denna tjänst INTE har takpris. Det är därför fördel att fylla i tänkta volymer i syfte för att undvika höga priser."]
[]
[]
[]
[]
[null,"Tjänsten omfattar:"]
[null,"• Anpassat frågeformulär för hälsotillstånd.\n• Blodprov (blodvärde, blodsocker, blodfetter), kontroll av äggvita, blodtrycksmätning, längd- och viktkontroll, midjemått och beräkning av BMI.\n• Återkoppling till individ med rekommendationer om åtgärder. Vid behov kostnadsfri remittering till specialist inom primärvården.\n• Ett uppföljande läkarbesök eller brevsvar med provtagningsresultat ska ingå när provavvikelser förekommer.\n• Rekommendationer om eventuella åtgärder eller uppföljande läkarbesök med klinisk undersökning kan därefter bli aktuellt.\nOBS! Innehållet i \"liten hälsoundersökning\" är fastställt. Efterfrågas annat innehåll så finns möjlighet att nyttja tjänsten \"valfri hälsoundersökning\"."]
[null,"Målgrupp","Plats",null,"Enhet",{"$f":"\"Volym/Antal (\"&E267&\")\"","v":"Volym/Antal ()"},"Kompetens",null,{"$f":"\"Pris/\"&E267","v":"Pris/"},null,"Tot Pris"]
[null,"Individ",null,null,null,null,null,null,null,null,{"$f":"F267*I267","v":0}]
[]
[null,"4.3.4.2 Stor hälsoundersökning (individ)"]
[null,"Tjänsten ska utföras av företagssköterska och vid behov av företagsläkare eller annan adekvat kompetens."]
[null,"Information / syfte (beskrivning som fylls i av avropsberättigad)\nAvropsberättigad ska specificera vilken annan adekvat kompetens som ska utföra tjänsten om detta är aktuellt.\nOBS! Vid grupp ange antalet individer / grupp\nNotera att denna tjänst INTE har takpris. Det är därför fördel att fylla i tänkta volymer i syfte för att undvika höga priser."]
[]
[]
[]
[]
[null,"Tjänsten omfattar:"]
[null,"• Anpassat frågeformulär för hälsotillstånd.\n• Blodprov (blodsocker, blodfetter, kalcium, njur- och leverprover), kontroll av äggvita, blodtrycksmätning, längd- och viktkontroll, syn- och hörseltest samt konditionstest.\n• Återkoppling till individ med rekommendationer om åtgärder. Vid behov kostnadsfri remittering till specialist inom primärvården.\n• Ett uppföljande läkarbesök eller brevsvar med provtagningsresultat ska ingå när provavvikelser förekommer.\n• Rekommendationer om eventuella åtgärder eller uppföljande läkarbesök med klinisk undersökning kan därefter bli aktuellt.\nOBS! innehålet i \"Stor hälsoundersökning\" är fastställt. Efterfrågas annat innehåll så finns möjlighet att nyttja tjänsten \"valfri hälsoundersökning\"."]
[null,"Målgrupp","Plats",null,"Enhet",{"$f":"\"Volym/Antal (\"&E279&\")\"","v":"Volym/Antal ()"},"Kompetens",null,{"$f":"\"Pris/\"&E279","v":"Pris/"},null,"Tot Pris"]
[null,"Individ",null,null,null,null,null,null,null,null,{"$f":"F279*I279","v":0}]
[]
[]
[]
[null,"4.3.4.3 Valfri hälsoundersökning (individ)"]
[null,"Tjänsten ska utföras av företagssköterska och vid behov av företagsläkare eller annan adekvat kompetens."]
[null,"Information / syfte (beskrivning som fylls i av avropsberättigad)\nAvropsberättigad ska specificera vilken annan adekvat kompetens som ska utföra tjänsten om detta är aktuellt.\nOBS! Vid grupp ange antalet individer / grupp"]
[]
[]
[]
[]
[null,"Tjänsten omfattar:"]
[null,"Denna hälsoundersökning möjliggör för avropsberättigad att själv, utifrån aktuellt behov, välja vad som ska ingå i den aktuella undersökningen. Avropsberättigad specificerar själv vad undersökningen ska innehålla."]
[null,"Målgrupp","Plats",null,"Enhet",{"$f":"\"Volym/Antal (\"&E293&\")\"","v":"Volym/Antal ()"},"Kompetens",null,{"$f":"\"Pris/\"&E293","v":"Pris/"},null,"Tot Pris"]
[null,"Individ",null,null,null,null,null,null,null,null,{"$f":"F293*I293","v":0}]
[null,"Avropsberättigad specificerar nedan vad hälsoundersökningen ska innehålla."]
[]
[]
[]
[]
[]
[]
[]
[]
[null,"4.3.4.4 Hälsoundersökning, medicinska kontroller (individ)"]
[null,"Tjänsten ska utföras av företagssköterska och vid behov av företagsläkare eller annan adekvat kompetens."]
[null,"Information / syfte\nAvropsberättigad ska specificera vilken annan adekvat kompetens som ska utföra tjänsten om detta är aktuellt."]
[]
[]
[]
[]
[null,"Leverantören ska minst kunna erbjuda:"]
[null,"• Samtliga undersökningar/kontroller (inkl. arbets-EKG) enligt AFS 2005:6 och/eller andra förordningar.\n• Utfärdande av tjänstbarhetsintyg när så krävs.\n• Utfärdande av körkortsintyg samt förlängning av detsamma enligt gällande föreskrift.\n• Återkoppling till arbetsgivare och arbetstagare."]
[null,"Målgrupp","Plats",null,"Enhet","Volym/Antal","Kompetens",null,"Pris/enhet",null,"Tot Pris"]
[null,"Individ",null,null,null,null,null,null,null,null,{"$f":"F313*I313","v":0}]
[null,"Individ",null,null,null,null,null,null,null,null,{"$f":"F314*I314","v":0}]
[null,"Individ",null,null,null,null,null,null,null,null,{"$f":"F315*I315","v":0}]
[null,"Avropsberättigads beskrivning av ytteligare krav på vad som ska omfattas av tjänsten (vid behov)."]
[]
[]
[]
[]
[]
[]
[]
[]
[]
[null,"4.3.5 Vaccinationstjänster"]
[null,"4.3.5.1 Vaccination - influensa och andra epidemiska sjukdomar (individ)"]
[null,"Komptenser: Tjänsten ska utföras i enlighet med Socialstyrelsens föreskrifter och allmänna råd (SOSFS),\n2000:1 och 1999:26."]
[null,"Ramavtalets takpriser för tjänsten får ej öveskridas. Takprislistor finns under resp leverantör."]
[null,"Information / syfte"]
[]
[]
[]
[]
[null,"Leverantören ska minst kunna erbjuda:"]
[null,"• Allmänna råd och information om vaccinationer och eventuella biverkningar.\n• Bedömning.\n• Vaccination.\n• Dokumentation.\n• Vaccinationsjournal för varje anställd."]
[null,"Målgrupp","Plats",null,"Enhet",null,{"$f":"\"Volym/Antal (\"&E338&\")\"","v":"Volym/Antal ()"},null,{"$f":"\"Pris/\"&E338&\"*\"","v":"Pris/*"},null,"Tot Pris"]
[null,"Individ",null,null,null,null,null,null,null,null,{"$f":"G338*I338","v":0}]
[null,"Avropsberättigads beskrivning av ytteligare krav på vad som ska omfattas av tjänsten (vid behov).",null,null,null,null,null,null,{"$f":"\"*Pris per \"&E338&\" inkl alla nödvändiga kompetenser.\nSjälva vaccinet debiteras utöver\"","v":"*Pris per  inkl alla nödvändiga kompetenser.\nSjälva vaccinet debiteras utöver"}]
[]
[]
[]
[]
[]
[]
[]
[]
[null,"4.3.5.2 Vaccination vid smittexponering i tjänsten (individ)"]
[null,"Komptenser: Tjänsten ska utföras i enlighet med Socialstyrelsens föreskrifter och allmänna råd (SOSFS),2000:1 och 1999:26."]
[null,"Ramavtalets takpris för tjänsten får ej överskridas. Takprislistor finns under resp leverantör."]
[]
[]
[]
[]
[null,"Tjänsten omfattar minst nedan:"]
[null,"• Allmänna råd och information om vaccinationer och eventuella biverkningar.\n• Bedömning.\n• Vaccination, (t.ex. TBE, Hepatit B, Hepatit A + B, Polio, Difteri och TBC).\n• Uppföljning.\n• Dokumentation.\n• Vaccinationsjournal för varje anställd."]
[null,"Målgrupp","Plats",null,null,"Enhet",{"$f":"\"Volym/Antal (\"&F358&\")\"","v":"Volym/Antal ()"},null,{"$f":"\"Pris/\"&F358&\"*\"","v":"Pris/*"},null,"Tot Pris"]
[null,"Individ",null,null,null,null,null,null,null,null,{"$f":"G358*I358","v":0}]
[null,"Avropsberättigads beskrivning av ytteligare krav på vad som ska omfattas av tjänsten (vid behov).",null,null,null,null,null,null,{"$f":"\"*Pris per \"&F358&\" inkl alla nödvändiga kompetenser.\nSjälva vaccinet debiteras utöver\"","v":"*Pris per  inkl alla nödvändiga kompetenser.\nSjälva vaccinet debiteras utöver"}]
[]
[]
[]
[]
[]
[]
[]
[]
[]
[null,"4.3.6 Stöd och rådgivning förebyggande"]
[null,"4.3.6.1 Förebyggande samtalsstöd (individ)"]
[null,"Tjänsten ska utföras av beteendevetare, leg. psykolog eller annan adekvat kompetens.\nEnligt överenskommelse med avropsberättigad så kan tjänsten utföras av företagssköterska."]
[null,"Information / syfte\nAvropsberättigad ska specificera vilken annan adekvat kompetens som ska utföra tjänsten om detta är aktuellt."]
[]
[]
[]
[]
[null,"Tjänsten omfattar minst nedan:"]
[null,"• Definition av problembild med förslag till åtgärder.\n• Stöd i form av samtal.\n• Avstämning och uppföljning enligt överenskommelse med avropsberättigad.\n• Samtalsstöd med inriktning på kognitiv beteendeterapi kunna erbjudas vid behov."]
[null,"Målgrupp","Plats",null,"Enhet","Volym/Antal","Kompetens",null,"Pris/tim",null,"Tot Pris"]
[null,"Individ",null,null,"tim",null,"Beteendevetare",null,null,null,{"$f":"F380*I380","v":0}]
[null,"Individ",null,null,"tim",null,"Legitimerad psykolog",null,null,null,{"$f":"F381*I381","v":0}]
[null,"Individ",null,null,"tim",null,"Företagssköterska",null,null,null,{"$f":"F382*I382","v":0}]
[null,"Individ",null,null,"tim",null,"Annan adekvat kompetens",null,null,null,{"$f":"F383*I383","v":0}]
[null,"Avropsberättigads beskrivning av ytteligare krav på vad som ska omfattas av tjänsten (vid behov)."]
[]
[]
[]
[]
[]
[]
[]
[]
[]
[null,"4.3.6.2 Stresshantering (individ)"]
[null,"Tjänsten ska utföras av leg. psykolog eller beteendevetare eller annan adekvat kompetens."]
[null,"Information / syfte\nAvropsberättigad ska specificera vilken annan adekvat kompetens som ska utföra tjänsten om detta är aktuellt."]
[]
[]
[]
[]
[null,"Tjänsten omfattar minst nedan:"]
[null,"• Definition av problembild samt förslag till åtgärder.\n• Stresshantering.\n• Avstämning och uppföljning enligt överenskommelse med avropsberättigad."]
[null,"Målgrupp","Plats",null,"Enhet","Volym/Antal","Kompetens",null,"Pris/tim",null,"Tot Pris"]
[null,"Individ",null,null,"tim",null,"Beteendevetare",null,null,null,{"$f":"F404*I404","v":0}]
[null,"Individ",null,null,"tim",null,"Legitimerad psykolog",null,null,null,{"$f":"F405*I405","v":0}]
[null,"Individ",null,null,"tim",null,"Annan adekvat kompetens",null,null,null,{"$f":"F406*I406","v":0}]
[null,"Avropsberättigads beskrivning av ytteligare krav på vad som ska omfattas av tjänsten (vid behov)."]
[]
[]
[]
[]
[]
[]
[]
[]
[null,"4.3.6.3 Stöd till individ vid konflikter (individ)"]
[null,"Tjänsten ska utföras av leg. psykolog, beteendevetare eller annan adekvat kompetens."]
[null,"Information / syfte\nAvropsberättigad ska specificera vilken annan adekvat kompetens som ska utföra tjänsten om detta är aktuellt."]
[]
[]
[]
[]
[null,"Tjänsten omfattar minst nedan:"]
[null,"• Definition av problembild samt förslag till åtgärder.\n• Stöd till ïndividen i samråd med avropsberättigad.\n• Avstämning och uppföljning enligt överenskommelse med avropsberättigad."]
[null,"Målgrupp","Plats",null,"Enhet","Volym/Antal","Kompetens",null,"Pris/tim",null,"Tot Pris"]
[null,"Individ",null,null,"tim",null,"Beteendevetare",null,null,null,{"$f":"F426*I426","v":0}]
[null,"Individ",null,null,"tim",null,"Legitimerad psykolog",null,null,null,{"$f":"F427*I427","v":0}]
[null,"Individ",null,null,"tim",null,"Annan adekvat kompetens",null,null,null,{"$f":"F428*I428","v":0}]
[null,"Avropsberättigads beskrivning av ytteligare krav på vad som ska omfattas av tjänsten (vid behov)."]
[]
[]
[]
[]
[]
[]
[]
[]
[]
[null,"4.3.6.4 Stöd till grupp vid konflikter"]
[null,"Tjänsten ska utföras av leg. psykolog, beteendevetare eller annan adekvat kompetens."]
[null,"Information / syfte\nAvropsberättigad ska specificera vilken annan adekvat kompetens som ska utföra tjänsten om detta är aktuellt."]
[]
[]
[]
[]
[null,"Tjänsten omfattar minst nedan:"]
[null,"• Definition av problembild samt förslag till åtgärder.\n• Stöd till gruppen i samråd med avropsberättigad.\n• Avstämning och uppföljning enligt överenskommelse med avropsberättigad."]
[null,"Målgrupp","Plats",null,"Enhet","Volym/Antal","Kompetens",null,"Pris/tim",null,"Tot Pris"]
[null,"Grupp",null,null,"tim",null,"Beteendevetare",null,null,null,{"$f":"F449*I449","v":0}]
[null,"Grupp",null,null,"tim",null,"Legitimerad psykolog",null,null,null,{"$f":"F450*I450","v":0}]
[null,"Grupp",null,null,"tim",null,"Annan adekvat kompetens",null,null,null,{"$f":"F451*I451","v":0}]
[null,"Avropsberättigads beskrivning av ytteligare krav på vad som ska omfattas av tjänsten (vid behov)."]
[]
[]
[]
[]
[]
[]
[]
[]
[]
[]
[null,"4.3.6.5 Stöd till individ vid kriser"]
[null,"Tjänsten ska utföras av leg. psykolog, beteendevetare eller annan adekvat kompetens."]
[null,"Information / syfte\nAvropsberättigad ska specificera vilken annan adekvat kompetens som ska utföra tjänsten om detta är aktuellt."]
[]
[]
[]
[]
[null,"Tjänsten omfattar minst nedan:"]
[null,"• Stöd till individ i samråd med avropsberättigad.\n• Avstämning och uppföljning i överenskommelse med avropsberättigad.\n• Definition av problembild samt förslag till åtgärder."]
[null,"Målgrupp","Plats",null,"Enhet","Volym/Antal","Kompetens",null,"Pris/tim",null,"Tot Pris"]
[null,"Individ",null,null,"tim",null,"Beteendevetare",null,null,null,{"$f":"F473*I473","v":0}]
[null,"Individ",null,null,"tim",null,"Legitimerad psykolog",null,null,null,{"$f":"F474*I474","v":0}]
[null,"Individ",null,null,"tim",null,"Annan adekvat kompetens",null,null,null,{"$f":"F475*I475","v":0}]
[null,"Avropsberättigads beskrivning av ytteligare krav på vad som ska omfattas av tjänsten (vid behov)."]
[]
[]
[]
[]
[]
[]
[]
[]
[]
[null,"4.3.6.6 Stöd till grupper vid kriser"]
[null,"Tjänsten ska utföras av leg. psykolog, beteendevetare eller annan adekvat kompetens."]
[null,"Information / syfte\nAvropsberättigad ska specificera vilken annan adekvat kompetens som ska utföra tjänsten om detta är aktuellt."]
[]
[]
[]
[]
[null,"Tjänsten omfattar minst nedan:"]
[null,"• Definition av problembild samt förslag till åtgärder.\n• Stöd till gruppen i samråd med avropsberättigad.\n• Avstämning och uppföljning enligt överenskommelse med avropsberättigad."]
[null,"Målgrupp","Plats",null,"Enhet","Volym/Antal","Kompetens",null,"Pris/tim",null,"Tot Pris"]
[null,"Grupp",null,null,"tim.",null,"Beteendevetare",null,null,null,{"$f":"F496*I496","v":0}]
[null,"Grupp",null,null,"tim.",null,"Legitimerad psykolog",null,null,null,{"$f":"F497*I497","v":0}]
[null,"Grupp",null,null,"tim.",null,"Annan adekvat kompetens",null,null,null,{"$f":"F498*I498","v":0}]
[null,"Avropsberättigads beskrivning av ytteligare krav på vad som ska omfattas av tjänsten (vid behov)."]
[]
[]
[]
[]
[]
[]
[]
[]
[]
[null,"4.3.6.7 Rådgivning till chef (individ och grupp)"]
[null,"Tjänsten ska utföras av lämplig kompetens inom området såsom leg. psykolog, beteendevetare, organisationskonsult och arbetsmiljöingengör eller annan adekvat kompetens."]
[null,"Information / syfte\nAvropsberättigad ska specificera vilken annan adekvat kompetens som ska utföra tjänsten om detta är aktuellt."]
[]
[]
[]
[]
[null,"Tjänsten omfattar minst nedan:"]
[null,"• Definition av problembild med förslag till åtgärder.\n• Stöd i förebyggande arbetsmiljö- och hälsoarbete samt arbetsanpassning och rehabilitering.\n• Avstämning och uppföljning enligt överenskommelse med avropsberättigad."]
[null,"Målgrupp","Plats",null,"Enhet","Volym/Antal","Kompetens",null,"Pris/tim",null,"Tot Pris"]
[null,null,null,null,"tim",null,"Beteendevetare",null,null,null,{"$f":"F519*I519","v":0}]
[null,null,null,null,"tim",null,"Legitimerad psykolog",null,null,null,{"$f":"F520*I520","v":0}]
[null,null,null,null,"tim",null,"Organisations konsult",null,null,null,{"$f":"F521*I521","v":0}]
[null,null,null,null,"tim",null,"Arbetsmiljöingenjör",null,null,null,{"$f":"F522*I522","v":0}]
[null,null,null,null,"tim",null,"Annan adekvat kompetens",null,null,null,{"$f":"F523*I523","v":0}]
[null,"Avropsberättigads beskrivning av ytteligare krav på vad som ska omfattas av tjänsten (vid behov)."]
[]
[]
[]
[]
[]
[]
[]
[]
[]
[null,"4.3.6.8 Mobbningsutredning (individ och grupp)"]
[null,"Tjänsten ska utföras av leg. psykolog eller beteendevetare."]
[null,"Information / syfte"]
[]
[]
[]
[]
[null,"Tjänsten omfattar minst nedan:"]
[null,"• Utredning av mobbning och kränkningar utifrån aktuell lagstiftning.\n• Skriftlig bedömning med förslag om eventuella behov av vidare stödinsatser på både grupp- och individnivå.\n• Gruppsamtal och samtal på individnivå.\n• Stöd till chefer och ledningsgrupper.\n• Uppföljning i samråd med avropsberättigad"]
[null,"Målgrupp","Plats",null,"Enhet","Volym/Antal","Kompetens",null,"Pris/tim",null,"Tot Pris"]
[null,null,null,null,"tim",null,"Beteendevetare",null,null,null,{"$f":"F544*I544","v":0}]
[null,null,null,null,"tim",null,"Legitimerad psykolog",null,null,null,{"$f":"F545*I545","v":0}]
[null,null,null,null,"tim",null,"Annan adekvat kompetens",null,null,null,{"$f":"F546*I546","v":0}]
[null,"Avropsberättigads beskrivning av ytteligare krav på vad som ska omfattas av tjänsten (vid behov)."]
[]
[]
[]
[]
[]
[]
[]
[]
[]
[null,"4.3.7 Utbildningar och seminarier"]
[null,"4.3.7.1 Utbildningar och seminarier inom arbetsmiljö- och hälsoområdet (grupp)"]
[null,"Tjänsten ska utföras av lämplig kompetens inom de områden som utbildningarna och seminarierna avser.\n\nAvropsberättigad avgör i samråd med anbudsgivaren om tjänsten ska utföras på företagshälsovårdens mottagning och/eller i avropsberättigads lokaler.\n\nAvseende utbildningar och seminarier kan det vara lämpligt att fastställa innehåll och pris under kontraktsperioden och inte vid avropet. Anledningen till detta är att det kan vara svårt för avropsberättigad att vid avropet känna till vilka behov av utbildningar och seminarier som föreligger och innehållet i dessa.. Det blir därför även svårt för leverantörerna att prissätta utbildningar och seminarier. "]
[null,"Avropsberättigads Information om / syfte med utbildningen",null,null,null,"Leverantörens beskrivning av utbildningen\n(alt ref till bilaga)"]
[]
[]
[]
[]
[null,"Tjänsten kan innehålla"]
[null,"• Utbildningar och seminarier inom arbetsmiljö och det systematiska arbetsmiljöarbetet."]
[null,"Specificerat innehåll (alternativt referera till bilaga)","Plats","Omfattning/tillfälle\nlängd (tim, dagar)","Volym/Antal (st)","Leverantörens beskrivning av innehåll\n(alternativt referera till bilaga)",null,null,"Pris/st",null,"Tot Pris"]
[null,null,null,null,null,null,null,null,null,null,{"$f":"E568*I568","v":0}]
[null,null,null,null,null,null,null,null,null,null,{"$f":"E569*I569","v":0}]
[null,null,null,null,null,null,null,null,null,null,{"$f":"E570*I570","v":0}]
[null,null,null,null,null,null,null,null,null,null,{"$f":"E571*I571","v":0}]
[null,null,null,null,null,null,null,null,"* st avser pris per utbildning/seminarium\n(alla med utbildningen/\nseminariet förenade kostnader ska anges och ingå i offerten)"]
[null,"Avropsberättigads beskrivning av ytteligare krav på vad som ska omfattas av tjänsten (vid behov)."]
[]
[]
[]
[]
[]
[]
[]
[]
[null,"4.4 Rehabiliterande tjänster"]
[null,"4.4.1 Besök hos företagshälsovården rehabiliterande"]
[null,"4.4.1.1 Besök rehabiliterande (individ)\nTjänsten ger individen möjlighet att besöka företagshälsovården för utredning av arbetsrelaterade besvär. I tjänsten ingår individuella besök och kostnadsfri remittering till specialist inom primärvården. Specificera uppskattade timmar per kompetens i avsnitt \"Priser för olika kompetenser\" högst upp."]
[]
[]
[null,"4.4.1.2 Besök rehabiliterande - övriga kompetenser (individ)"]
[null,"Tjänsten ska utföras av adekvat kompetens."]
[null,"Information / syfte\nAvropsberättigad ska specificera vilken annan adekvat kompetens som ska utföra tjänsten om detta är aktuellt."]
[]
[]
[]
[]
[null,"Tjänsten omfattar minst nedan:"]
[null,"• Möjlighet att köpa tjänster från övriga kompetenser, exempelvis dipl. massör, ögonläkare, audiolog, kardiolog, ortoped, flygläkare, dykläkare, leg. naprapat, leg. kiropraktor och dietist (exempel).\n• Individuella besök."]
[null,"Målgrupp","Plats",null,"Enhet","Volym/Antal","Kompetens",null,"Pris/tim",null,"Tot Pris"]
[null,"Individ",null,null,"tim",null,null,null,null,null,{"$f":"F597*I597","v":0}]
[null,"Individ",null,null,"tim",null,null,null,null,null,{"$f":"F598*I598","v":0}]
[null,"Individ",null,null,"tim",null,null,null,null,null,{"$f":"F599*I599","v":0}]
[null,"Individ",null,null,"tim",null,null,null,null,null,{"$f":"F600*I600","v":0}]
[null,"Individ",null,null,"tim",null,null,null,null,null,{"$f":"F601*I601","v":0}]
[null,"Avropsberättigads beskrivning av ytteligare krav på vad som ska omfattas av tjänsten (vid behov)."]
[]
[]
[]
[]
[]
[]
[]
[]
[]
[null,"4.4.2 Stöd och rådgivning rehabiliterande"]
[null,"4.4.2.1 Rehabiliterande samtalsstöd (individ)"]
[null,"Tjänsten ska utföras av beteendevetare, leg. psykolog eller annan adekvat kompetens. Enligt överenskommelse med avropsberättigad kan tjänsten utföras av företagssköterska."]
[null,"Information / syfte\nAvropsberättigad ska specificera vilken annan adekvat kompetens som ska utföra tjänsten om detta är aktuellt."]
[]
[]
[]
[]
[null,"Tjänsten omfattar minst nedan:"]
[null,"• Definition av problembild med förslag till åtgärder.\n• Stöd i form av samtal.\n• Avstämning och uppföljning enligt överenskommelse med avropsberättigad.\n• Vid behov ska stöd med inriktning på kognitiv beteendeterapi kunna erbjudas."]
[null,"Målgrupp","Plats",null,"Enhet","Volym/Antal","Kompetens",null,"Pris/tim",null,"Tot Pris"]
[null,"Individ",null,null,"tim",null,"Beteendevetare",null,null,null,{"$f":"F623*I623","v":0}]
[null,"Individ",null,null,"tim",null,"Legitimerad psykolog",null,null,null,{"$f":"F624*I624","v":0}]
[null,"Individ",null,null,"tim",null,"Företagssköterska",null,null,null,{"$f":"F625*I625","v":0}]
[null,"Individ",null,null,"tim",null,"Annan adekvat kompetens",null,null,null,{"$f":"F626*I626","v":0}]
[null,"Avropsberättigads beskrivning av ytteligare krav på vad som ska omfattas av tjänsten (vid behov)."]
[]
[]
[]
[]
[]
[]
[]
[null,"4.4.3 Arbetsanpassning och rehabilitering"]
[null,"4.4.3.1 Arbetsanpassning och rehabilitering"]
[null,"Tjänsten ska utföras av lämplig kompetens dock minst av företagsläkare, företagssköterska, leg psykolog och fysioterapeut."]
[null,"Information / syfte"]
[]
[]
[]
[]
[null,"Tjänsten omfattar minst nedan:"]
[null,"• Stöd till medarbetare.\n• Stöd till arbetsgivaren.\n• 1:a bedömningsbesök.\n• Samordningsansvar av rehabiliteringsaktiviteter.\n• Stöd i framtagande av rehabiliteringsplan.\n• Kostnadsfri remittering till specialist inom primärvården."]
[null,"Målgrupp","Plats",null,"Enhet","Volym/Antal","Kompetens",null,"Pris/tim",null,"Tot Pris"]
[null,"Organisation",null,null,"tim",null,"Företagsläkare",null,null,null,{"$f":"F646*I646","v":0}]
[null,"Organisation",null,null,"tim",null,"Företagssköterska",null,null,null,{"$f":"F647*I647","v":0}]
[null,"Organisation",null,null,"tim",null,"Legitimerad psykolog",null,null,null,{"$f":"F648*I648","v":0}]
[null,"Organisation",null,null,"tim",null,"Fysioterapeut.",null,null,null,{"$f":"F649*I649","v":0}]
[null,"Avropsberättigads beskrivning av ytteligare krav på vad som ska omfattas av tjänsten (vid behov)."]
[]
[]
[]
[]
[]
[]
[]
[]
[]
[null,"4.4.3.2 Arbetsförmågebedömning"]
[null,"Tjänsten ska utföras av adekvata kompetenser dock minst företagsläkare, företagssköterska och beteendevetare eller leg. psykolog."]
[null,"Information / syfte\nAvropsberättigad ska specificera vilken annan adekvat kompetens som ska utföra tjänsten om detta är aktuellt."]
[]
[]
[]
[]
[null,"Tjänsten omfattar minst nedan:"]
[null,"• Stöd i arbete med att ta fram uppdragsbeskrivning vid behov.\n• Bedömning av arbetsförmåga utifrån fysiska, psykiska, intellektuella eller sociala funktioner och utifrån nuvarande arbetsuppgifter.\n• Fullgott beslutsunderlag om vilka arbetslivsinriktade rehabiliteringsåtgärder och/eller\narbetsanpassningar och arbetsuppgifter som är lämpliga.\n• Besök hos företagshälsovården och vid behov arbetsplatsbesök.\n• Prognos för att återgå till ordinarie arbetsuppgifter och nuvarande arbetsgivare.\n• Avstämningsmöte."]
[null,"Målgrupp","Plats",null,"Enhet","Volym/Antal","Kompetens",null,"Pris/enhet",null,"Tot Pris"]
[null,null,null,null,null,null,null,null,null,null,{"$f":"F670*I670","v":0}]
[null,null,null,null,null,null,null,null,null,null,{"$f":"F671*I671","v":0}]
[null,null,null,null,null,null,null,null,null,null,{"$f":"F672*I672","v":0}]
[null,null,null,null,null,null,null,null,null,null,{"$f":"F673*I673","v":0}]
[null,"Avropsberättigads beskrivning av ytteligare krav på vad som ska omfattas av tjänsten (vid behov)."]
[]
[]
[]
[]
[]
[]
[]
[]
[]
[null,"4.4.3.3 Utredning och stöd vid missbruk (individ och organisation)"]
[null,"Tjänsten ska utföras av företagsläkare, företagssköterska och/eller annan adekvat kompetens."]
[null,"Information / syfte\nAvropsberättigad ska specificera vilken annan adekvat kompetens som ska utföra tjänsten om detta är aktuellt."]
[]
[]
[]
[]
[null,"Tjänsten omfattar minst nedan:"]
[null,"• Metodbeskrivning i arbetet med individen.\n• Besök hos företagshälsovården.\n• Provtagning samt vid behov löpande provtagning.\n• Medicinsk utredning och bedömning av eventuellt missbruk samt grad av allvarlighet.\n• Individanpassat rehabiliterings-/behandlingsförslag.\n• Utfärdande av 1:a dagsintyg.\n• Råd och stöd till chef/HR.\n• Rehabiliteringsmöte.\n• Uppföljning enligt överenskommelse."]
[null,"Målgrupp","Plats",null,"Enhet","Volym/Antal","Kompetens",null,"Pris/tim",null,"Tot Pris"]
[null,null,null,null,"tim",null,"Företagsläkare",null,null,null,{"$f":"F694*I694","v":0}]
[null,null,null,null,"tim",null,"Företagssköterska",null,null,null,{"$f":"F695*I695","v":0}]
[null,null,null,null,"tim",null,"Annan adekvat kompetens",null,null,null,{"$f":"F696*I696","v":0}]
[null,"Avropsberättigads beskrivning av ytteligare krav på vad som ska omfattas av tjänsten (vid behov)."]

{"sheet":"4.2 Priskorg övriga tjänster","index":4,"n_rows":44,"n_cols":11,"rows_kept":44,"cut":false,"hidden":false,"merged":[[3,1,3,10],[14,1,14,6],[21,1,21,6],[16,2,16,4],[17,2,17,4],[18,2,18,4],[19,2,19,4],[15,2,15,4],[20,2,20,6],[7,1,7,6],[8,1,8,6],[9,1,11,6],[12,1,12,6],[13,1,13,6],[44,1,49,6],[39,1,39,6],[43,1,43,6],[42,2,42,6],[22,1,27,6],[32,1,32,6],[33,1,33,6],[34,1,36,6],[37,1,37,6],[38,1,38,6],[40,2,40,4],[41,2,41,4]]}
[null,null,null,null,null,null,null,null,null,null,{"$f":"\"Diarienummer / Nummer: \"&'2 Specifikation'!$E$15","v":"Diarienummer / Nummer: xxxx"}]
[]
[null,"4.5 Övriga tjänster"]
[null,"Tjänsterna nedan bedöms efterfrågas endast i en begränsad omfattning.\nDärför ska tjänsterna tillhandahållas först i samband med att dessa efterfrågas av avropsberättigad vid avrop eller under kontraktets giltighetstid.\n\nAvropsberättigad ska ge anbudsgivaren en skälig tid för att tillhandahålla tjänsterna.\nAvropsberättigad definierar sitt behov av tjänsten.\n\nRamavtalsleverantören ska även tillhandahålla separat statistik för dessa tjänster."]
[null,"4.5.1 Tillhandahållande av övriga tjänster"]
[]
[null,"4.5.2 24-timmars krisstöd"]
[null,"Tjänsten ska utföras av adekvat kompetens."]
[null,"Information / syfte\nAvropsberättigad ska specificera vilken annan adekvat kompetens som ska utföra tjänsten om detta är aktuellt."]
[]
[]
[]
[]
[null,"Tjänsten kan omfatta:"]
[null,"• Tillgänglighet per telefon 24 timmar per dygn årets alla dagar.\n• Erbjuda alternativa tider och former för tillgänglighet vid behov.\n• Erbjuda krisstöd på plats vid behov.\n• Anpassning till avropsberättigads krisorganisation.\n• Samverkan med övriga leverantörer av företagshälsovård, som den avropsberättigade eventuellt anlitar.\n• Möjlighet till akut hjälp per telefon 24 timmar per dygn årets alla dagar.\n• Möjlighet till personligt möte med lämplig kompetens.\n• Statistik och uppföljning enligt överenskommelse med avropsberättigad."]
[null,"Målgrupp","Typ",null,null,"Enhet","Volym/Antal2",null,"Pris",null,"Tot Pris"]
[null,"Organisation","Abonnemang (pris/anställd och år)",null,null,"Antal",null,null,null,null,{"$f":"G17*I17","v":0}]
[null,"Organisation","Timkostnad helgfri vardag, 8:00 - 16:30",null,"tim.","tim.",null,null,null,null,{"$f":"G18*I18","v":0}]
[null,"Organisation","Timkostnad helgfri kväll 16:30 - 8:00",null,"tim.","tim.",null,null,null,null,{"$f":"G19*I19","v":0}]
[null,"Organisation","Timkostnad helg1 och \"röda dagar\"",null,"tim.","tim.",null,null,null,null,{"$f":"G20*I20","v":0}]
[null,null,"1. Helg ovan avser även julafton, nyårsafton, påskafton och midsommarafton.\n2. Avropande organisation anger antal anställda resp uppskattade antal timmar.\n"]
[null,"Avropsberättigad anger förutsättningarna för utförandet av tjänsten baserat på verksamhetens behov, t.ex. antal anställda, vilka typer av verksamhet som bedrivs, organisationens uppbyggnad m.m. Det är viktigt att göra en marknadsanalys inför avrop för att få förståelse för marknaden och tjänsten. Här anges även förutsättningarna för prissättningen, exempelvis kan olika förutsättningarna för prissättning finnas såsom grundabonnemang, rörliga priser och fasta priser."]
[]
[]
[]
[]
[]
[]
[]
[]
[]
[null,"4.5.3 Sjuk- och friskanmälan"]
[null,"Tjänsten ska utföras av adekvat kompetens."]
[null,"Information / syfte\nAvropsberättigad ska specificera vilken annan adekvat kompetens som ska utföra tjänsten om detta är aktuellt."]
[]
[]
[]
[]
[null,"Tjänsten kan omfatta:"]
[null,"• Sjukanmälan med hälso- och sjukvårdsrådgivning.\n• Kontakt med den sjuke under sjukfrånvaron.\n• Återkoppling till närmaste chef.\n• Statistik och uppföljning enligt överenskommelse med avropsberättigad."]
[null,"Målgrupp","Typ",null,null,"Enhet","Volym/Antal2",null,"Pris",null,"Tot Pris"]
[null,"Organisation","Abonnemang (pris/anställd och år)",null,null,"Antal1",null,null,null,null,{"$f":"G42*I42","v":0}]
[null,null,"1.Avropande organisation anger antal anställda och leverantören anger pris per anställd och år\n"]
[null,"Avropsberättigad anger förutsättningarna för utförandet av tjänsten baserat på verksamhetens behov, t.ex. antal anställda, vilka typer av verksamhet som bedrivs, organisationens uppbyggnad m.m. Det är viktigt att göra en marknadsanalys inför avrop för att få förståelse för marknaden och tjänsten. Här anges även förutsättningarna för prissättningen, exempelvis kan olika förutsättningarna för prissättning finnas såsom grundabonnemang, rörliga priser och fasta priser."]

{"sheet":"Kontrakt","index":5,"n_rows":35,"n_cols":4,"rows_kept":35,"cut":false,"hidden":false,"merged":[[10,1,10,3],[4,1,4,3],[6,1,6,3],[7,1,7,3],[8,1,8,3],[9,1,9,3],[12,1,12,3],[13,1,14,3],[17,1,17,3],[18,1,19,3],[20,1,20,3]]}
[null,null,null,{"$f":"\"Avrop nr: \"&'2 Specifikation'!E15","v":"Avrop nr: xxxx"}]
[]
[]
[null,"Kontrakt"]
[null,"Detta kontrakt reglerar avrop från ramavtalsområde Företagshälsovårdstjänster dnr 96-95-2014"]
[null,"Kontraktets omfattning"]
[null,"Leveransens omfattning och villkor framgår av Kontraktet med tillhörande bilagor samt Ramavtalet. Om handlingarna innehåller motstridiga uppgifter ska handlingarna gälla i nedan nämnd ordning om inte omständigheterna uppenbarligen föranleder annat."]
[null,"1. Ramavtalets huvudtext"]
[null,"2. Ramavtalets bilaga Allmänna villkor"]
[null,"3. Detta Kontrakt med tillhörande bilagor (så som uppdragsbeskrivning, prisbilaga, kundens avropsförfrågan, leverantörens avropssvar, kontraktsperiod, eventuella optioner etc.)"]
[null,"Innehåller leverantörens avropssvar uppgifter som inte efterfrågats i avropsblanketten är dessa uppgifter giltiga endast om en skriftlig överenskommelse träffas särskilt angående detta. Hänvisning till leverantörens egna allmänna villkor eller motsvarande är endast giltiga om en särskild överenskommelse avseende detta tecknas."]
[null,"Uppdragsbeskrivning/omfattning"]
[null," I den gula rutan nedan beskrivs uppdrag/eller dess omfattning alt. hänvisas till bilaga, t.ex. avropsförfrågan."]
[]
[]
[]
[null,"Leveransbeskrivning"]
[null,"I de fall leveransbeskrivning används, anges den i gula rutan nedan, alt. hänvisa till bilaga. En leveransbeskrivning kan exempelvis vara beskrivning av Avropsberättigades organisation, eventuella kontraktsvillkor, specifika kontaktpersoner och kontaktvägar, samarbetsformer och rutiner etc."]
[]
[]
[null,"Underskriften avser ett kontraktstecknande. Efter undertecknande av bägge parter utgör denna blankett tillsammans med ramavtalets generella och specifika avtalsvillkor enligt ovan ett kontrakt mellan parterna.\n\nDetta kontrakt har upprättats i två exemplar varav parterna tagit var sitt."]
[]
[null,"Avropsberättigad",null,"Leverantören"]
[null,0,null,{"$f":"'2 Specifikation'!K9","v":0}]
[null,"Org.nr.",null,"Org.nr."]
[null,0,null,{"$f":"'2 Specifikation'!Q9","v":0}]
[]
[null,"Ort, datum",null,"Ort, datum"]
[]
[]
[null,"Namn, befattning \n(behörig företrädare för avropsberättigad)",null,"Namn, befattning \n(behörig företrädare för leverantören)"]
[]
[]
[]
[null,"Eventuella bilagor till kontraktet"]

{"sheet":"Leverantör & Ort","index":6,"n_rows":239,"n_cols":31,"rows_kept":239,"cut":false,"hidden":false,"merged":[]}
["Orter\nVälj orter \ni det gulmarkerade cellerna","Välj orter:","AB Previa","Akademihälsan i Göteborg AB ","Attundahälsan Företagshälsovård","Avonova Hälsa AB","Clarahälsan AB","Feelgood Företagshälsovård Östersund AB","Feelgood Företagshälsovård AB","FöretagsHälsan FHC AB","Skaraborgshälsan AB","HeLaHälsan Dalarna AB","Feelgood Företagshälsovård södra AB","Jobbhälsan i Norr AB","Länshälsan Uppsala AB","Servicehälsan i Värmland AB",null,null,null,null,null,null,null,null,null,null,null,null,null,null,"Antal leverantörer på orten"]
[null,"Antal","Finns på orter av de valda",null,null,null,null,null,null,null,null,null,null,null,null,null,null,null,null,null,null,null,null,null,null,null,null,null,null,null,{"$f":"COUNTIF($C$4:$P$4,B4)","v":14}]
[null,null,{"$f":"C4=$B$4","v":true},true,true,true,true,true,true,true,true,true,{"$f":"M4=$B$4","v":true},true,{"$f":"O4=$B$4","v":true},true]
["Finns på antal orter",{"$f":"COUNTIF($B$5:$B$239,\"X\")","v":0},{"$f":"SUM(Q5:Q239)","v":0},{"$f":"SUM(R5:R239)","v":0},{"$f":"SUM(S5:S239)","v":0},{"$f":"SUM(T5:T239)","v":0},{"$f":"SUM(V5:V239)","v":0},0,0,0,0,0,{"$f":"SUM(U5:U239)","v":0},{"$f":"SUM(AB5:AB239)","v":0},{"$f":"SUM(AC5:AC239)","v":0},{"$f":"SUM(AD5:AD239)","v":0}]
["Alingsås",null,"X","","","X","","","X","","","","","",null,"",{"$f":"IF($B5=\"X\",IF(C5=\"X\",1,0),0)","v":0},{"$f":"IF($B5=\"X\",IF(D5=\"X\",1,0),0)","v":0},{"$f":"IF($B5=\"X\",IF(E5=\"X\",1,0),0)","v":0},{"$f":"IF($B5=\"X\",IF(F5=\"X\",1,0),0)","v":0},{"$f":"IF($B5=\"X\",IF(M5=\"X\",1,0),0)","v":0},{"$f":"IF($B5=\"X\",IF(G5=\"X\",1,0),0)","v":0},{"$f":"IF($B5=\"X\",IF(H5=\"X\",1,0),0)","v":0},{"$f":"IF($B5=\"X\",IF(I5=\"X\",1,0),0)","v":0},{"$f":"IF($B5=\"X\",IF(J5=\"X\",1,0),0)","v":0},{"$f":"IF($B5=\"X\",IF(K5=\"X\",1,0),0)","v":0},{"$f":"IF($B5=\"X\",IF(L5=\"X\",1,0),0)","v":0},{"$f":"IF($B5=\"X\",IF(N5=\"X\",1,0),0)","v":0},{"$f":"IF($B5=\"X\",IF(O5=\"X\",1,0),0)","v":0},{"$f":"IF($B5=\"X\",IF(P5=\"X\",1,0),0)","v":0},{"$f":"SUM(Q5:AD5)","v":0}]
["Anderstorp",null,null,"","","","","","X","","","","","",null,"",0,0,0,0,0,0,0,0,0,0,0,0,0,0,0]
["Aneby",null,null,null,null,null,null,null,"X",null,null,null,null,null,null,null,0,0,0,0,0,0,0,0,0,0,0,0,0,0,0]
["Arboga",null,"","","","X","","","","","","","","",null,"",0,0,0,0,0,0,0,0,0,0,0,0,0,0,0]
["Arlanda",null,"X",null,null,null,null,null,null,null,null,null,null,null,null,null,0,0,0,0,0,0,0,0,0,0,0,0,0,0,0]
["Arvidsjaur",null,"X","","","","","","X","","","","","",null,"",0,0,0,0,0,0,0,0,0,0,0,0,0,0,0]
["Arvika",null,"X","","","X","","","","","","","","",null,"",0,0,0,0,0,0,0,0,0,0,0,0,0,0,0]
["Askersund",null,"X","","","X","","","","","","","","",null,"",0,0,0,0,0,0,0,0,0,0,0,0,0,0,0]
["Avesta",null,"X","","","X","","","X","","",null,"","",null,"",0,0,0,0,0,0,0,0,0,0,0,0,0,0,0]
["Bengtsfors",null,"","","","X","","","","","","","","",null,"",0,0,0,0,0,0,0,0,0,0,0,0,0,0,0]
["Boden",null,"X","","","X","","","X","","","","","X",null,"",0,0,0,0,0,0,0,0,0,0,0,0,0,0,0]
["Bohus",null,"","","",null,"","","X","","","","","",null,"",0,0,0,0,0,0,0,0,0,0,0,0,0,0,0]
["Bollnäs",null,"X",null,"","","","","X","","",null,"","",null,"",0,0,0,0,0,0,0,0,0,0,0,0,0,0,0]
["Borgholm",null,"X","","","","","","","","","","","",null,"",0,0,0,0,0,0,0,0,0,0,0,0,0,0,0]
["Borlänge",null,"X","","","X","","","X","","",null,"",null,null,"",0,0,0,0,0,0,0,0,0,0,0,0,0,0,0]
["Borås",null,"X","","","X","","","X","","","","","",null,"",0,0,0,0,0,0,0,0,0,0,0,0,0,0,0]
["Bredaryd",null,null,"","",null,"","","X","","","","","",null,"",0,0,0,0,0,0,0,0,0,0,0,0,0,0,0]
["Broby",null,"","","","X","","","","","","","","",null,"",0,0,0,0,0,0,0,0,0,0,0,0,0,0,0]
["Bromölla",null,"","","","X","","","","","",null,"","",null,"",0,0,0,0,0,0,0,0,0,0,0,0,0,0,0]
["Burseryd",null,"","","","","","","X","","","","","",null,"",0,0,0,0,0,0,0,0,0,0,0,0,0,0,0]
["Charlottenberg",null,"X","","","","","","","","","","","",null,"",0,0,0,0,0,0,0,0,0,0,0,0,0,0,0]
["Danderyd",null,"","","","X","","","","","","","","",null,"",0,0,0,0,0,0,0,0,0,0,0,0,0,0,0]
["Degerfors",null,"X","","","X",null,"","","","","","",null,null,"X",0,0,0,0,0,0,0,0,0,0,0,0,0,0,0]
["Djurås",null,"","","","X","","","X","","","","","",null,"",0,0,0,0,0,0,0,0,0,0,0,0,0,0,0]
["Domsjö",null,"X",null,null,null,null,null,null,null,null,null,null,null,null,null,0,0,0,0,0,0,0,0,0,0,0,0,0,0,0]
["Dorotea",null,"X","","","","","","","","","","","",null,"",0,0,0,0,0,0,0,0,0,0,0,0,0,0,0]
["Ed",null,"","","","X","","","","","","","","",null,"",0,0,0,0,0,0,0,0,0,0,0,0,0,0,0]
["Edsbyn",null,"","","","","","","X","","","","","",null,"",0,0,0,0,0,0,0,0,0,0,0,0,0,0,0]
["Eksjö",null,"X","","","X","","",null,"","","","",null,null,"",0,0,0,0,0,0,0,0,0,0,0,0,0,0,0]
["Emmaboda",null,null,"","","X","","",null,"","","","",null,null,"",0,0,0,0,0,0,0,0,0,0,0,0,0,0,0]
["Enköping",null,"X","","","X","","","X","","","","","",null,"",0,0,0,0,0,0,0,0,0,0,0,0,0,0,0]
["Eskilstuna",null,"X","","","X","","","X","","",null,"","",null,"",0,0,0,0,0,0,0,0,0,0,0,0,0,0,0]
["Eslöv",null,"X","","","X","","",null,"","","",null,"",null,"",{"$f":"IF($B37=\"X\",IF(C37=\"X\",1,0),0)","v":0},{"$f":"IF($B37=\"X\",IF(D37=\"X\",1,0),0)","v":0},{"$f":"IF($B37=\"X\",IF(E37=\"X\",1,0),0)","v":0},{"$f":"IF($B37=\"X\",IF(F37=\"X\",1,0),0)","v":0},0,0,0,0,0,0,0,0,0,0,0]
["Fagersta",null,null,"","","X","","",null,"","","","","",null,"",0,0,0,0,0,0,0,0,0,0,0,0,0,0,0]
["Falkenberg",null,"X","","","X","","",null,"","","","","",null,"",0,0,0,0,0,0,0,0,0,0,0,0,0,0,0]
["Falköping",null,"X","","","X","","","","","","","","",null,"",0,0,0,0,0,0,0,0,0,0,0,0,0,0,0]
["Falun",null,"X","","","X","","","X","","",null,"","",null,"",0,0,0,0,0,0,0,0,0,0,0,0,0,0,0]
["Farsta",null,"X",null,null,null,null,null,null,null,null,null,null,null,null,null,0,0,0,0,0,0,0,0,0,0,0,0,0,0,0]
["Filipstad",null,null,"","","X",null,"",null,"","","","","",null,"",0,0,0,0,0,0,0,0,0,0,0,0,0,0,0]
["Finspång",null,"X","","","X","","",null,"","",null,"",null,null,"",0,0,0,0,0,0,0,0,0,0,0,0,0,0,0]
["Flen",null,"X","","","","","","","","","","","",null,"",0,0,0,0,0,0,0,0,0,0,0,0,0,0,0]
["Färgelanda",null,"X","","","","","",null,"","","","","",null,"",0,0,0,0,0,0,0,0,0,0,0,0,0,0,0]
["Gislaved",null,"","","","X","","","X","","","","","",null,"",0,0,0,0,0,0,0,0,0,0,0,0,0,0,0]
["Gnosjö",null,"","","",null,"","","X","","","","","",null,"",0,0,0,0,0,0,0,0,0,0,0,0,0,0,0]
["Gullspång",null,"","","","X","","",null,"","","","","",null,"",0,0,0,0,0,0,0,0,0,0,0,0,0,0,0]
["Gyttorp",null,null,null,null,"X",null,null,null,null,null,null,null,null,null,null,0,0,0,0,0,0,0,0,0,0,0,0,0,0,0]
["Gäddedde",null,"","","","","","","X","","","","","",null,"",0,0,0,0,0,0,0,0,0,0,0,0,0,0,0]
["Gällivare",null,"X","","","X","","","X","","","","","",null,"",0,0,0,0,0,0,0,0,0,0,0,0,0,0,0]
["Gävle",null,"X","","","X","","","X","","",null,"","",null,"",0,0,0,0,0,0,0,0,0,0,0,0,0,0,0]
["Göteborg",null,"X","X",null,"X","","","X","","",null,"","",null,"",0,0,0,0,0,0,0,0,0,0,0,0,0,0,0]
["Götene",null,"X","","","X","","","","","X","","","",null,"",0,0,0,0,0,0,0,0,0,0,0,0,0,0,0]
["Habo",null,"X","","","","","","","","","","","",null,"",0,0,0,0,0,0,0,0,0,0,0,0,0,0,0]
["Hagfors",null,"","","","X",null,"","X","","","",null,"",null,"X",0,0,0,0,0,0,0,0,0,0,0,0,0,0,0]
["Hallsberg",null,"X","","","","","","X","","",null,"","",null,"",0,0,0,0,0,0,0,0,0,0,0,0,0,0,0]
["Halmstad",null,"X","","","X","","","X","","",null,"","",null,"",0,0,0,0,0,0,0,0,0,0,0,0,0,0,0]
["Handen",null,"","","","X","","","","","","","","",null,"",0,0,0,0,0,0,0,0,0,0,0,0,0,0,0]
["Haparanda",null,null,"","","X","","","","","","",null,"",null,"",0,0,0,0,0,0,0,0,0,0,0,0,0,0,0]
["Hedemora",null,"X","","","X","","","X","","","X",null,null,null,"",0,0,0,0,0,0,0,0,0,0,0,0,0,0,0]
["Helsingborg",null,"X","","","X","","","X","","","","","",null,"",0,0,0,0,0,0,0,0,0,0,0,0,0,0,0]
["Herrljunga",null,"","","","X","","","","","","","","",null,"",0,0,0,0,0,0,0,0,0,0,0,0,0,0,0]
["Hestra",null,"","","","","","","X","","","","","",null,"",0,0,0,0,0,0,0,0,0,0,0,0,0,0,0]
["Hjo",null,"","","","X","","","","","","","","",null,"",0,0,0,0,0,0,0,0,0,0,0,0,0,0,0]
["Hofors",null,"X","","","","","","","","","","","",null,"",0,0,0,0,0,0,0,0,0,0,0,0,0,0,0]
["Hoting",null,"","","","","","","X","","","","","",null,"",0,0,0,0,0,0,0,0,0,0,0,0,0,0,0]
["Huddinge",null,"X","","","X","","","X",null,"","","","",null,"",{"$f":"IF($B69=\"X\",IF(C69=\"X\",1,0),0)","v":0},{"$f":"IF($B69=\"X\",IF(D69=\"X\",1,0),0)","v":0},{"$f":"IF($B69=\"X\",IF(E69=\"X\",1,0),0)","v":0},{"$f":"IF($B69=\"X\",IF(F69=\"X\",1,0),0)","v":0},{"$f":"IF($B69=\"X\",IF(M69=\"X\",1,0),0)","v":0},{"$f":"IF($B69=\"X\",IF(G69=\"X\",1,0),0)","v":0},{"$f":"IF($B69=\"X\",IF(H69=\"X\",1,0),0)","v":0},{"$f":"IF($B69=\"X\",IF(I69=\"X\",1,0),0)","v":0},{"$f":"IF($B69=\"X\",IF(J69=\"X\",1,0),0)","v":0},{"$f":"IF($B69=\"X\",IF(K69=\"X\",1,0),0)","v":0},{"$f":"IF($B69=\"X\",IF(L69=\"X\",1,0),0)","v":0},{"$f":"IF($B69=\"X\",IF(N69=\"X\",1,0),0)","v":0},{"$f":"IF($B69=\"X\",IF(O69=\"X\",1,0),0)","v":0},{"$f":"IF($B69=\"X\",IF(P69=\"X\",1,0),0)","v":0},{"$f":"SUM(Q69:AD69)","v":0}]
["Hudiksvall",null,"X","","","X","","","X","","",null,"","",null,"",0,0,0,0,0,0,0,0,0,0,0,0,0,0,0]
["Hultsfred",null,null,"","","X","","",null,"","","","",null,null,"",0,0,0,0,0,0,0,0,0,0,0,0,0,0,0]
["Husum",null,"X","","","","","","","","","","","",null,"",0,0,0,0,0,0,0,0,0,0,0,0,0,0,0]
["Hyltebruk",null,"","","","X","","",null,"","","","","",null,"",0,0,0,0,0,0,0,0,0,0,0,0,0,0,0]
["Hägersten",null,"X",null,null,null,null,null,null,null,null,null,null,null,null,null,0,0,0,0,0,0,0,0,0,0,0,0,0,0,0]
["Hällefors",null,null,null,"","X",null,"",null,"","","",null,"",null,"",0,0,0,0,0,0,0,0,0,0,0,0,0,0,0]
["Härnösand",null,"X","","","X","","","X","","",null,"","",null,"",0,0,0,0,0,0,0,0,0,0,0,0,0,0,0]
["Hässleholm",null,"X","","","","","","X","","",null,"X","",null,"",0,0,0,0,0,0,0,0,0,0,0,0,0,0,0]
["Höganäs",null,"","","","X","","","","","","","","",null,"",0,0,0,0,0,0,0,0,0,0,0,0,0,0,0]
["Hörby",null,"","","","","","","X","","",null,"X","",null,"",0,0,0,0,0,0,0,0,0,0,0,0,0,0,0]
["Höör",null,null,null,"","","","","X","","",null,"X","",null,"",0,0,0,0,0,0,0,0,0,0,0,0,0,0,0]
["Johanneshov",null,"X","","","","","","","","","","","",null,"",0,0,0,0,0,0,0,0,0,0,0,0,0,0,0]
["Jokkmokk",null,"X",null,"","","","","X","","","","","",null,"",0,0,0,0,0,0,0,0,0,0,0,0,0,0,0]
["Järfälla",null,"","","","X","","","","","","","","",null,"",0,0,0,0,0,0,0,0,0,0,0,0,0,0,0]
["Jönköping",null,"X","","","X","","","X","","","","",null,null,"",0,0,0,0,0,0,0,0,0,0,0,0,0,0,0]
["Kalix",null,"X","","","X","","",null,"","","",null,null,null,"",0,0,0,0,0,0,0,0,0,0,0,0,0,0,0]
["Kalmar",null,"X","","","X","","",null,"","","",null,null,null,"",0,0,0,0,0,0,0,0,0,0,0,0,0,0,0]
["Karlsborg",null,"X",null,"","","","",null,"","X","","","",null,"",0,0,0,0,0,0,0,0,0,0,0,0,0,0,0]
["Karlshamn",null,"X","","","X","","",null,"X","",null,"","",null,"",0,0,0,0,0,0,0,0,0,0,0,0,0,0,0]
["Karlskoga",null,"X","","","X",null,"","X","","","",null,"",null,"X",0,0,0,0,0,0,0,0,0,0,0,0,0,0,0]
["Karlskrona",null,"X","","","X","","","X","X","","",null,"",null,"",0,0,0,0,0,0,0,0,0,0,0,0,0,0,0]
["Karlstad",null,"X","","","X","X","","X","","","",null,"",null,null,0,0,0,0,0,0,0,0,0,0,0,0,0,0,0]
["Katrineholm",null,"X","","","","","","X","","","","","",null,"",0,0,0,0,0,0,0,0,0,0,0,0,0,0,0]
["Kil",null,"","","",null,"","","X","","","","","",null,"X",0,0,0,0,0,0,0,0,0,0,0,0,0,0,0]
["Kiruna",null,"X","","","X","","","X","","",null,"","",null,"",0,0,0,0,0,0,0,0,0,0,0,0,0,0,0]
["Kista",null,"X","","","","","","X","","","","","",null,"",0,0,0,0,0,0,0,0,0,0,0,0,0,0,0]
["Klippan",null,"","","","","","","X","","","","","",null,"",0,0,0,0,0,0,0,0,0,0,0,0,0,0,0]
["Kramfors",null,"X","","","","","","X","","","","","",null,"",0,0,0,0,0,0,0,0,0,0,0,0,0,0,0]
["Kristianstad",null,"X","","","X","","","X","","","","X","",null,"",0,0,0,0,0,0,0,0,0,0,0,0,0,0,0]
["Kristinehamn",null,"X","","","X",null,"","X",null,"","","","",null,"X",0,0,0,0,0,0,0,0,0,0,0,0,0,0,0]
["Kumla",null,"","","","","","","X","","","","","",null,"",0,0,0,0,0,0,0,0,0,0,0,0,0,0,0]
["Kungsbacka",null,null,"","","X","","",null,"","","","","",null,"",{"$f":"IF($B101=\"X\",IF(C101=\"X\",1,0),0)","v":0},{"$f":"IF($B101=\"X\",IF(D101=\"X\",1,0),0)","v":0},{"$f":"IF($B101=\"X\",IF(E101=\"X\",1,0),0)","v":0},{"$f":"IF($B101=\"X\",IF(F101=\"X\",1,0),0)","v":0},0,0,0,0,0,0,0,0,0,0,0]
["Kungsör",null,"","","","X","","","","","","","","",null,"",0,0,0,0,0,0,0,0,0,0,0,0,0,0,0]
["Kungälv",null,"","","","X","","",null,"","","","","",null,"",0,0,0,0,0,0,0,0,0,0,0,0,0,0,0]
["Kävlinge",null,"","","","X","","","","","","","","",null,"",0,0,0,0,0,0,0,0,0,0,0,0,0,0,0]
["Köping",null,null,"","","X","","",null,"","",null,"","",null,"",0,0,0,0,0,0,0,0,0,0,0,0,0,0,0]
["Landskrona",null,"X","","","","","","X","","","","","",null,"",0,0,0,0,0,0,0,0,0,0,0,0,0,0,0]
["Laxå",null,"","","","","","","X","","","","","",null,"",0,0,0,0,0,0,0,0,0,0,0,0,0,0,0]
["Leksand",null,"X","","","X","","","X","","","",null,"",null,"",0,0,0,0,0,0,0,0,0,0,0,0,0,0,0]
["Lenhovda",null,"X","","","","","","","","","","","",null,"",0,0,0,0,0,0,0,0,0,0,0,0,0,0,0]
["Lerum",null,"","","","X","","","","","","","","",null,"",0,0,0,0,0,0,0,0,0,0,0,0,0,0,0]
["Lessebo",null,"X","","","","","","","","","","","",null,"",0,0,0,0,0,0,0,0,0,0,0,0,0,0,0]
["Lidköping",null,"X","","","X","","","","","X",null,"","",null,"",0,0,0,0,0,0,0,0,0,0,0,0,0,0,0]
["Lilla Edet",null,"X",null,"","X","","","","","","","","",null,"",0,0,0,0,0,0,0,0,0,0,0,0,0,0,0]
["Lindesberg",null,null,"","","X","","","","","","","","",null,"",0,0,0,0,0,0,0,0,0,0,0,0,0,0,0]
["Linköping",null,"X","","","X","","","X","","",null,null,null,null,"",0,0,0,0,0,0,0,0,0,0,0,0,0,0,0]
["Ljungby",null,"X","","","X","","","X","","","","",null,null,"",0,0,0,0,0,0,0,0,0,0,0,0,0,0,0]
["Ljusdal",null,"X","","","X","","",null,"","","",null,null,null,"",0,0,0,0,0,0,0,0,0,0,0,0,0,0,0]
["Ludvika",null,"X","","","X","","","X","","","X","","",null,"",0,0,0,0,0,0,0,0,0,0,0,0,0,0,0]
["Luleå",null,"X","","","X","","","X","","","",null,"X",null,"",0,0,0,0,0,0,0,0,0,0,0,0,0,0,0]
["Lund",null,"X","","","X","","","X","","","",null,"",null,"",0,0,0,0,0,0,0,0,0,0,0,0,0,0,0]
["Lycksele",null,"X","","","","","","","","","","","",null,"",0,0,0,0,0,0,0,0,0,0,0,0,0,0,0]
["Lysekil",null,"X","","","X","","","","","",null,"","",null,"",0,0,0,0,0,0,0,0,0,0,0,0,0,0,0]
["Malmö",null,"X","","","X","","","X","","",null,"X","",null,"",0,0,0,0,0,0,0,0,0,0,0,0,0,0,0]
["Malung",null,"X","","","X","","","X","","","","","",null,"",0,0,0,0,0,0,0,0,0,0,0,0,0,0,0]
["Mariestad",null,"","","","X","","","","","","","","",null,"",0,0,0,0,0,0,0,0,0,0,0,0,0,0,0]
["Markaryd",null,"","","","","","","X","","",null,"X","",null,"",0,0,0,0,0,0,0,0,0,0,0,0,0,0,0]
["Mellerud",null,"","","","X","","","","","","","","",null,"",0,0,0,0,0,0,0,0,0,0,0,0,0,0,0]
["Mjölby",null,"X","","","X","","","X","","","","",null,null,"",0,0,0,0,0,0,0,0,0,0,0,0,0,0,0]
["Mora",null,"X","","","X","","","X","","","","","",null,"",0,0,0,0,0,0,0,0,0,0,0,0,0,0,0]
["Motala",null,"X","","","X","","","X","","","","",null,null,"",0,0,0,0,0,0,0,0,0,0,0,0,0,0,0]
["Munkedal",null,"X",null,null,null,null,null,null,null,"","",null,null,null,null,0,0,0,0,0,0,0,0,0,0,0,0,0,0,0]
["Munkfors",null,"","","","X",null,"","X","","","","","",null,"X",{"$f":"IF($B132=\"X\",IF(C132=\"X\",1,0),0)","v":0},{"$f":"IF($B132=\"X\",IF(D132=\"X\",1,0),0)","v":0},{"$f":"IF($B132=\"X\",IF(E132=\"X\",1,0),0)","v":0},{"$f":"IF($B132=\"X\",IF(F132=\"X\",1,0),0)","v":0},{"$f":"IF($B132=\"X\",IF(M132=\"X\",1,0),0)","v":0},{"$f":"IF($B132=\"X\",IF(G132=\"X\",1,0),0)","v":0},{"$f":"IF($B132=\"X\",IF(H132=\"X\",1,0),0)","v":0},{"$f":"IF($B132=\"X\",IF(I132=\"X\",1,0),0)","v":0},{"$f":"IF($B132=\"X\",IF(J132=\"X\",1,0),0)","v":0},{"$f":"IF($B132=\"X\",IF(K132=\"X\",1,0),0)","v":0},{"$f":"IF($B132=\"X\",IF(L132=\"X\",1,0),0)","v":0},{"$f":"IF($B132=\"X\",IF(N132=\"X\",1,0),0)","v":0},{"$f":"IF($B132=\"X\",IF(O132=\"X\",1,0),0)","v":0},{"$f":"IF($B132=\"X\",IF(P132=\"X\",1,0),0)","v":0},{"$f":"SUM(Q132:AD132)","v":0}]
["Märsta",null,"X","","","","","",null,"","","","","",null,"",0,0,0,0,0,0,0,0,0,0,0,0,0,0,0]
["Mölndal",null,"X","","","X","","","","","",null,"X","",null,"",0,0,0,0,0,0,0,0,0,0,0,0,0,0,0]
["Mönsterås",null,"X",null,null,"X",null,null,null,null,null,null,null,null,null,null,0,0,0,0,0,0,0,0,0,0,0,0,0,0,0]
["Nacka",null,"X","","","","","",null,"","","","","",null,"",0,0,0,0,0,0,0,0,0,0,0,0,0,0,0]
["Nordmaling",null,"X","","","","","","","","","","","",null,"",0,0,0,0,0,0,0,0,0,0,0,0,0,0,0]
["Norrköping",null,"X","","","X","","","X","","",null,"X",null,null,"",0,0,0,0,0,0,0,0,0,0,0,0,0,0,0]
["Norrtälje",null,"X","","","X","","","X","","",null,"","",null,"",0,0,0,0,0,0,0,0,0,0,0,0,0,0,0]
["Nybro",null,"","","","X","","",null,"","","","",null,null,"",0,0,0,0,0,0,0,0,0,0,0,0,0,0,0]
["Nyköping",null,"X","","","X","","","X","","","",null,"",null,"",0,0,0,0,0,0,0,0,0,0,0,0,0,0,0]
["Nässjö",null,"X","","","X","","",null,"","","","",null,null,"",0,0,0,0,0,0,0,0,0,0,0,0,0,0,0]
["Olofström",null,"","","","","","","X","","","","","",null,"",0,0,0,0,0,0,0,0,0,0,0,0,0,0,0]
["Osby",null,"","","","","","","X","","","","X","",null,"",0,0,0,0,0,0,0,0,0,0,0,0,0,0,0]
["Oskarshamn",null,"X","","","X","","",null,"","","","",null,null,"",0,0,0,0,0,0,0,0,0,0,0,0,0,0,0]
["Perstorp",null,"","","","","","","X","","","","","",null,"",0,0,0,0,0,0,0,0,0,0,0,0,0,0,0]
["Piteå",null,"X","","","X","","","X","","",null,"","X",null,"",0,0,0,0,0,0,0,0,0,0,0,0,0,0,0]
["Reftele",null,"","","","","","","X","","","","","",null,"",0,0,0,0,0,0,0,0,0,0,0,0,0,0,0]
["Ronneby",null,"X","","","X","","","X","X","","",null,"",null,"",0,0,0,0,0,0,0,0,0,0,0,0,0,0,0]
["Rundvik",null,"","","","","","","X","","","","","",null,"",0,0,0,0,0,0,0,0,0,0,0,0,0,0,0]
["Sala",null,"X","","","X","","",null,"","","","","",null,"",0,0,0,0,0,0,0,0,0,0,0,0,0,0,0]
["Sandviken",null,"X","","","","","",null,"","",null,"","",null,"",0,0,0,0,0,0,0,0,0,0,0,0,0,0,0]
["Simrishamn",null,"X","","","","","","X","","","","","",null,"",0,0,0,0,0,0,0,0,0,0,0,0,0,0,0]
["Sjöbo",null,"","","","","","","X","","","","","",null,"",0,0,0,0,0,0,0,0,0,0,0,0,0,0,0]
["Skara",null,"X","","","X","","",null,"","","","","",null,"",0,0,0,0,0,0,0,0,0,0,0,0,0,0,0]
["Skellefteå",null,"X","","","X","","","X","","",null,null,"",null,"",0,0,0,0,0,0,0,0,0,0,0,0,0,0,0]
["Skene",null,"X","","","","","","","","","","","",null,"",0,0,0,0,0,0,0,0,0,0,0,0,0,0,0]
["Skurup",null,"X","","","","","","","","","","","",null,"",0,0,0,0,0,0,0,0,0,0,0,0,0,0,0]
["Skutskär",null,"X","","","","","","","","","","","",null,"",0,0,0,0,0,0,0,0,0,0,0,0,0,0,0]
["Skövde",null,"X","","","X","","","X","","","","","",null,"",0,0,0,0,0,0,0,0,0,0,0,0,0,0,0]
["Smålandsstenar",null,"","","","","","","X","","","","","",null,"",0,0,0,0,0,0,0,0,0,0,0,0,0,0,0]
["Sollefteå",null,"X","","","X","","","X","","",null,"","",null,"",0,0,0,0,0,0,0,0,0,0,0,0,0,0,0]
["Sollentuna",null,"","","X",null,"","","","","","","","",null,"",{"$f":"IF($B163=\"X\",IF(C163=\"X\",1,0),0)","v":0},{"$f":"IF($B163=\"X\",IF(D163=\"X\",1,0),0)","v":0},{"$f":"IF($B163=\"X\",IF(E163=\"X\",1,0),0)","v":0},{"$f":"IF($B163=\"X\",IF(F163=\"X\",1,0),0)","v":0},0,0,0,0,0,0,0,0,0,0,0]
["Solna",null,"X","","","X","","","X","","",null,"X","",null,"",0,0,0,0,0,0,0,0,0,0,0,0,0,0,0]
["Sorsele",null,"X","","","","","","","","","","","",null,"",0,0,0,0,0,0,0,0,0,0,0,0,0,0,0]
["Spånga",null,null,null,null,null,null,null,null,null,null,null,"X",null,null,null,0,0,0,0,0,0,0,0,0,0,0,0,0,0,0]
["Stenungsund",null,"X","","","X","","","","","","",null,"",null,"",0,0,0,0,0,0,0,0,0,0,0,0,0,0,0]
["Stockholm",null,"X","","","X","","X","X",null,"","","X","",null,"",0,0,0,0,0,0,0,0,0,0,0,0,0,0,0]
["Storuman",null,"X","","","","","","","","","","","",null,"",0,0,0,0,0,0,0,0,0,0,0,0,0,0,0]
["Strängnäs",null,null,"","","X","","",null,"","","","","",null,"",0,0,0,0,0,0,0,0,0,0,0,0,0,0,0]
["Strömstad",null,"X",null,null,"",null,null,null,null,null,null,null,null,null,null,0,0,0,0,0,0,0,0,0,0,0,0,0,0,0]
["Strömsund",null,"X","","","","","X","X","","","","","",null,"",0,0,0,0,0,0,0,0,0,0,0,0,0,0,0]
["Sundbyberg",null,"X",null,null,null,null,null,null,null,null,null,null,null,null,null,0,0,0,0,0,0,0,0,0,0,0,0,0,0,0]
["Sundsvall",null,"X","","","X","","","X","","",null,null,null,null,"",0,0,0,0,0,0,0,0,0,0,0,0,0,0,0]
["Sunne",null,null,"","","X",null,null,"X","","","","","",null,"X",0,0,0,0,0,0,0,0,0,0,0,0,0,0,0]
["Surahammar",null,"","","","X","","",null,"","","","","",null,"",0,0,0,0,0,0,0,0,0,0,0,0,0,0,0]
["Svedala",null,"X","","","","","","","","","","","",null,"",0,0,0,0,0,0,0,0,0,0,0,0,0,0,0]
["Sveg",null,"X","","","X","","X",null,"","","",null,"",null,"",0,0,0,0,0,0,0,0,0,0,0,0,0,0,0]
["Svenstavik",null,"X","","","","",null,null,"","","","","",null,"",0,0,0,0,0,0,0,0,0,0,0,0,0,0,0]
["Säffle",null,null,"","","X",null,"","X","","","","","",null,"",0,0,0,0,0,0,0,0,0,0,0,0,0,0,0]
["Säter",null,"","","","","","",null,"","","X","","",null,"",0,0,0,0,0,0,0,0,0,0,0,0,0,0,0]
["Söderfors",null,"","","","","","","X","","","","","",null,"",0,0,0,0,0,0,0,0,0,0,0,0,0,0,0]
["Söderhamn",null,null,"","","","","","X","","","","","",null,"",0,0,0,0,0,0,0,0,0,0,0,0,0,0,0]
["Söderköping",null,"","","","X","","",null,"","","","",null,null,"",0,0,0,0,0,0,0,0,0,0,0,0,0,0,0]
["Södertälje",null,"X","","","","","","X","","","","","",null,"",0,0,0,0,0,0,0,0,0,0,0,0,0,0,0]
["Sölvesborg",null,"","","","X","","",null,"","","",null,"",null,"",0,0,0,0,0,0,0,0,0,0,0,0,0,0,0]
["Tanumshede",null,"X",null,"","X","","",null,"","","","","",null,"",0,0,0,0,0,0,0,0,0,0,0,0,0,0,0]
["Tibro",null,"X","","","X","","","",null,"X","","","",null,"",0,0,0,0,0,0,0,0,0,0,0,0,0,0,0]
["Tidaholm",null,null,"","","X","","","","","","","","",null,"",0,0,0,0,0,0,0,0,0,0,0,0,0,0,0]
["Tierp",null,"X","","","X","",null,null,"",null,"",null,"","X","",0,0,0,0,0,0,0,0,0,0,0,0,0,0,0]
["Timrå",null,null,null,null,null,null,null,"X",null,null,"",null,null,null,null,0,0,0,0,0,0,0,0,0,0,0,0,0,0,0]
["Tingsryd",null,null,"","","X","","",null,"","","",null,null,null,"",0,0,0,0,0,0,0,0,0,0,0,0,0,0,0]
["Tomelilla",null,"X","","","","","","X","","","","","",null,"",0,0,0,0,0,0,0,0,0,0,0,0,0,0,0]
["Torsby",null,null,"","","X",null,"","X","","","","","",null,"X",0,0,0,0,0,0,0,0,0,0,0,0,0,0,0]
["Torsås",null,"","","","X","","",null,"","","","",null,null,"",0,0,0,0,{"$f":"IF($B195=\"X\",IF(M195=\"X\",1,0),0)","v":0},{"$f":"IF($B195=\"X\",IF(G195=\"X\",1,0),0)","v":0},{"$f":"IF($B195=\"X\",IF(H195=\"X\",1,0),0)","v":0},{"$f":"IF($B195=\"X\",IF(I195=\"X\",1,0),0)","v":0},{"$f":"IF($B195=\"X\",IF(J195=\"X\",1,0),0)","v":0},{"$f":"IF($B195=\"X\",IF(K195=\"X\",1,0),0)","v":0},{"$f":"IF($B195=\"X\",IF(L195=\"X\",1,0),0)","v":0},{"$f":"IF($B195=\"X\",IF(N195=\"X\",1,0),0)","v":0},{"$f":"IF($B195=\"X\",IF(O195=\"X\",1,0),0)","v":0},{"$f":"IF($B195=\"X\",IF(P195=\"X\",1,0),0)","v":0},{"$f":"SUM(Q195:AD195)","v":0}]
["Tranemo",null,"","","","X","","",null,"","","","","",null,"",{"$f":"IF($B196=\"X\",IF(C196=\"X\",1,0),0)","v":0},{"$f":"IF($B196=\"X\",IF(D196=\"X\",1,0),0)","v":0},{"$f":"IF($B196=\"X\",IF(E196=\"X\",1,0),0)","v":0},{"$f":"IF($B196=\"X\",IF(F196=\"X\",1,0),0)","v":0},0,0,0,0,0,0,0,0,0,0,0]
["Transtrand",null,null,"","","","","","X","","","","","",null,"",0,0,0,0,0,0,0,0,0,0,0,0,0,0,0]
["Tranås",null,"","","","X","","",null,"","","","",null,null,"",0,0,0,0,0,0,0,0,0,0,0,0,0,0,0]
["Trelleborg",null,"X","","","","","",null,"","","","","",null,"",0,0,0,0,0,0,0,0,0,0,0,0,0,0,0]
["Trollhättan",null,"X","","","X","","",null,"","","","","",null,"",0,0,0,0,0,0,0,0,0,0,0,0,0,0,0]
["Tumba",null,null,null,null,"X",null,null,null,null,null,null,null,null,null,null,0,0,0,0,0,0,0,0,0,0,0,0,0,0,0]
["Tyresö",null,null,null,null,"X",null,null,null,null,null,null,null,null,null,null,0,0,0,0,0,0,0,0,0,0,0,0,0,0,0]
["Täby",null,"X","","","","","",null,"","","","","",null,"",0,0,0,0,0,0,0,0,0,0,0,0,0,0,0]
["Töreboda",null,"","","","X","","","","","","","","",null,"",0,0,0,0,0,0,0,0,0,0,0,0,0,0,0]
["Uddevalla",null,"X","","","X","","","X","","",null,"","",null,"",0,0,0,0,0,0,0,0,0,0,0,0,0,0,0]
["Ulricehamn",null,"","","","X","","","","","","","","",null,"",0,0,0,0,0,0,0,0,0,0,0,0,0,0,0]
["Umeå",null,"X","","","X","","","X","","","","",null,null,"",0,0,0,0,0,0,0,0,0,0,0,0,0,0,0]
["Uppsala",null,"X","","","X","","","X","","","","",null,"X","",0,0,0,0,0,0,0,0,0,0,0,0,0,0,0]
["Vaggeryd",null,"X","","","","","",null,"","","","","",null,"",0,0,0,0,0,0,0,0,0,0,0,0,0,0,0]
["Valdemarsvik",null,"","","","X","","","","","","","",null,null,"",0,0,0,0,0,0,0,0,0,0,0,0,0,0,0]
["Vansbro",null,"X","","","X","","","X","","","",null,"",null,"",0,0,0,0,0,0,0,0,0,0,0,0,0,0,0]
["Vara",null,"","","","X","","","","","","","","",null,"",0,0,0,0,0,0,0,0,0,0,0,0,0,0,0]
["Varberg",null,"X","","","X","","","X","","","","","",null,"",0,0,0,0,0,0,0,0,0,0,0,0,0,0,0]
["Vetlanda",null,"","","","X","","",null,"","","",null,null,null,"",0,0,0,0,0,0,0,0,0,0,0,0,0,0,0]
["Vilhelmina",null,"X","","","","","","X","","","","","",null,"",0,0,0,0,0,0,0,0,0,0,0,0,0,0,0]
["Vimmerby",null,null,"","","X","","",null,"","","","",null,null,"",0,0,0,0,0,0,0,0,0,0,0,0,0,0,0]
["Vindeln",null,"X","","","","","","","","","","","",null,"",0,0,0,0,0,0,0,0,0,0,0,0,0,0,0]
["Visby",null,"X","","","X","","","X","","","","","",null,"",0,0,0,0,0,0,0,0,0,0,0,0,0,0,0]
["Väjern",null,null,null,null,"X",null,null,null,null,null,null,null,null,null,null,0,0,0,0,0,0,0,0,0,0,0,0,0,0,0]
["Vänersborg",null,null,"","","X","","",null,"","","","","",null,"",0,0,0,0,0,0,0,0,0,0,0,0,0,0,0]
["Vännäs",null,null,"","","","","","X","","","","","",null,"",0,0,0,0,0,0,0,0,0,0,0,0,0,0,0]
["Värnamo",null,"X","","","X","","","","","","","","",null,"",0,0,0,0,0,0,0,0,0,0,0,0,0,0,0]
["Västervik",null,"X","","","X","","","X","","","",null,"",null,"",0,0,0,0,0,0,0,0,0,0,0,0,0,0,0]
["Västerås",null,"X","","","X","","","X","","",null,"","",null,"",0,0,0,0,0,0,0,0,0,0,0,0,0,0,0]
["Växjö",null,"X","","","X","","","X","","",null,"",null,null,"",0,0,0,0,0,0,0,0,0,0,0,0,0,0,0]
["Ystad",null,"X","","","X","","","X","","","",null,"",null,"",0,0,0,0,0,0,0,0,0,0,0,0,0,0,0]
["Åmål",null,null,"","","X","","","","","","","","",null,"",0,0,0,0,0,0,0,0,0,0,0,0,0,0,0]
["Ånge",null,"X","","","X","","","","","","","","",null,"",0,0,0,0,0,0,0,0,0,0,0,0,0,0,0]
["Årjäng",null,"","","","X","","","","","","","","",null,"",0,0,0,0,0,0,0,0,0,0,0,0,0,0,{"$f":"SUM(Q229:AD229)","v":0}]
["Åseda",null,null,null,null,"X",null,null,null,null,null,null,null,null,null,null,null,null,null,null,null,null,null,null,null,null,null,null,null,null,{"$f":"SUM(Q230:AD230)","v":0}]
["Åsele",null,"X",null,null,null,null,null,null,null,null,null,null,null,null,null,0,{"$f":"IF($B231=\"X\",IF(D231=\"X\",1,0),0)","v":0},{"$f":"IF($B231=\"X\",IF(E231=\"X\",1,0),0)","v":0},{"$f":"IF($B231=\"X\",IF(F231=\"X\",1,0),0)","v":0},{"$f":"IF($B231=\"X\",IF(M231=\"X\",1,0),0)","v":0},0,0,0,0,0,0,0,0,0,0]
["Älmhult",null,"X","","","","","","X","","","","X","",null,"",0,0,0,0,0,0,0,0,0,0,0,0,0,0,0]
["Ängelholm",null,"X","","","","","",null,"","",null,null,"",null,"",0,0,0,0,0,0,0,0,0,0,0,0,0,0,0]
["Ödeshög",null,null,"","","X","","","","","","","","",null,"",0,0,0,0,0,0,0,0,0,0,0,0,0,0,0]
["Örebro",null,"X","","","X","","","X","","",null,"",null,null,"",0,0,0,0,0,0,0,0,0,0,0,0,0,0,0]
["Örnsköldsvik",null,null,"","","X","","","X","","","","","",null,"",0,0,0,0,0,0,0,0,0,0,0,0,0,0,0]
["Österbymo",null,null,"","","X","","",null,"","",null,"",null,null,"",0,0,0,0,0,0,0,0,0,0,0,0,0,0,0]
["Östersund",null,"X","","","X","","X","X","","","","","",null,"",0,0,0,0,0,0,0,0,0,0,0,0,0,0,0]
["Östhammar",null,null,"","","X","",null,null,"","","","","","X","",0,0,0,0,0,0,0,0,0,0,0,0,0,0,0]

{"sheet":"Leverantörsdata","index":7,"n_rows":15,"n_cols":2,"rows_kept":15,"cut":false,"hidden":true,"merged":[]}
["Leverantörer","Org.nummer"]
["AB Previa","556235-1907"]
["Akademihälsan i Göteborg AB ","556702-1893"]
["Attundahälsan Företagshälsovård AB","556775-1408"]
["Avonova Hälsa AB","556500-6821"]
["Betania Organisationsmedicin AB","556589-3996"]
["Clarahälsan AB","556135-7590"]
["Feelgood Företagshälsovård Östersund AB","556272-3568"]
["Feelgood Företagshälsovård AB","556185-6385"]
["FöretagsHälsan FHC AB","556166-8913"]
["Skaraborgshälsan AB","556767-0145"]
["HeLahälsan Dalarna AB ","556820-7541"]
["Jobbhälsan i Norr AB ","556187-3455"]
["Länshälsan Uppsala AB","556605-1982"]
["Servicehälsan i Värmland AB","556205-6548"]

{"sheet":"Admin","index":8,"n_rows":33,"n_cols":28,"rows_kept":33,"cut":false,"hidden":true,"merged":[]}
["Målgrupp 1","Plats",null,"Kompetens (alla)","HälsoTest5211-2","HälsoTest5214","ArbMiljSAM5311","ErgGenomg5323","HälsoUndLiten5331","BesökAllm5334 ","BesökÖvr5335","Vaccination5341","SamtalsstödFörebyggande5351","StödGrupper5352","StödGrupperKriser5353 ","UtbSemArbMilj5361 ","ArbFörBed5411","UtredStödMissbruk5412 ","Telefonråd551 ","Arbanpassn",null,null,null,null,null,null,"UKey","Kammarkollegiet"]
["Organisation","Hos Leverantör",null,"Annan adekvat kompetens","Annan adekvat kompetens","Annan adekvat kompetens","Annan adekvat kompetens","Annan adekvat kompetens","Annan adekvat kompetens","Annan adekvat kompetens","Annan adekvat kompetens","Annan adekvat kompetens","Annan adekvat kompetens","Annan adekvat kompetens","Annan adekvat kompetens","Annan adekvat kompetens","Annan adekvat kompetens","Annan adekvat kompetens","Annan adekvat kompetens","Annan adekvat kompetens",null,null,null,null,null,null,"pkey","Kammarkollegiet"]
["Grupp","Hos Avropsberättigad",null,"Företagsläkare","Företagssköterska","Hälsopedagog","Företagsläkare","Arbetsmiljöingenjör","Företagsläkare","Företagsläkare","Dipl. massör","Företagsläkare","Beteendevetare","Beteendevetare","Beteendevetare","Företagsläkare","Företagsläkare","Företagsläkare","Företagsläkare","Företagsläkare",null,null,null,null,null,null,"Wkey","Kammarkollegiet"]
["Individ",null,null,"Legitimerad läkare","Hälsopedagog","Organisations konsult","Legitimerad läkare","Ergonom/fysioterapeut","Företagssköterska","Företagssköterska","Leg. naprapat","Företagssköterska","Legitimerad psykolog","Legitimerad psykolog","Legitimerad psykolog","Legitimerad läkare","Företagssköterska","Legitimerad läkare","Legitimerad läkare","Företagssköterska",null,null,0,0,null,null,"YColor"," "]
[null,null,null,"Företagssköterska",null,null,"Företagssköterska",null,null,"Beteendevetare","Leg. kiropraktor","Legitimerad sjuksköterska","Företagssköterska",null,"Arbetsmiljöingenjör","Företagssköterska","Beteendevetare","Företagssköterska","Företagssköterska","Fysioterapeut.",null,null,1,0.2,null,null,"Bcolor"]
["Målgrupp 2",null,null,"Legitimerad sjuksköterska",null,null,"Legitimerad sjuksköterska",null,null,"Legitimerad psykolog","Dietist",null,null,null,"Organisations konsult","Legitimerad sjuksköterska","Legitimerad psykolog","Legitimerad sjuksköterska","Legitimerad sjuksköterska","Legitimerad psykolog",null,null,2,0.4]
["Organisation",null,null,"Beteendevetare",null,null,"Beteendevetare",null,null,"Ergonom/fysioterapeut",null,null,null,null,null,"Beteendevetare","Fysioterapeut.","Beteendevetare","Beteendevetare",null,null,null,3,0.6]
["Grupp",null,null,"Legitimerad psykolog",null,null,"Legitimerad psykolog",null,null,"Legitimerad sjukgymnast",null,null,null,null,null,"Legitimerad psykolog",null,"Legitimerad psykolog","Legitimerad psykolog",null,null,null,4,0.8]
[null,null,null,"Arbetsmiljöingenjör",null,null,"Arbetsmiljöingenjör",null,null,"Hälsopedagog",null,null,null,null,null,"Arbetsmiljöingenjör",null,null,"Arbetsmiljöingenjör",null,null,null,5,1]
["Målgrupp 3",null,null,"Ergonom/fysioterapeut",null,null,"Ergonom/fysioterapeut",null,null,null,null,null,null,null,null,"Ergonom/fysioterapeut",null,null,"Ergonom/fysioterapeut"]
["Grupp",null,null,"Legitimerad sjukgymnast",null,null,"Legitimerad sjukgymnast",null,null,null,null,null,null,null,null,"Legitimerad sjukgymnast",null,null,"Legitimerad sjukgymnast"]
["Individ",null,null,"Organisations konsult",null,null,"Organisations konsult",null,null,null,null,null,null,null,null,"Organisations konsult",null,null,"Organisations konsult"]
[null,null,null,"Hälsopedagog",null,null,"Hälsopedagog",null,null,null,null,null,null,null,null,"Hälsopedagog",null,null,"Hälsopedagog"]
["Målgrupp 4",null,null,"Administratör",null,null,null,null,null,null,null,null,null,null,null,"Administratör",null,null,"Administratör"]
["Individ",null,null,null,null,null,null,null,null,null,null,null,null,null,null,"Dipl. massör",null,null,"Dipl. massör"]
["Organisation",null,null,null,null,null,null,null,null,null,null,null,null,null,null,"Leg. naprapat",null,null,"Leg. naprapat"]
[null,null,null,null,null,null,null,null,null,null,null,null,null,null,null,"Leg. kiropraktor",null,null,"Leg. kiropraktor"]
[null,null,null,null,null,null,null,null,null,null,null,null,null,null,null,"Dietist",null,null,"Dietist"]
["TblEnhet"]
["grupp."]
["pers."]
["styck."]
["tim."]
["halvdag"]
["heldag"]
[]
["TblEnhet2"]
["grupp."]
["pers."]
["styck."]
["tim."]
["halvdag"]
["heldag"]